Workbook

Sheet ■散布量計算シート
F2: 散布量計算
E3: ＜＜ 昭信式ノズル ＞＞
B5: お客様 | C5: おところ | F5: お名前 | J5: 様
B7: 製品名 | C7: 3S- | D7: FST1063H
B9: 計算担当者 | I9: =NOW() -> 2020-05-27T13:58:06.140 | K9: 作成
B12: ■散布条件-１
B14: 栽培品目/圃場名 | D14: リンゴ | G14: 噴霧方向 | H14: 噴板名称 | I14: ノズル個数 | J14: 吐出量
G15: 上・斜め上 | H15: Φ 1.5 | I15: 18 | J15: =作業シート!G17 -> 67.9 | K15: =IF($J$18>0,J15/$J$18,0) -> 63%
B16: 散布幅（列間隔） | D16: 5.6m | G16: 横 | H16: Φ 1.2 | I16: 18 | J16: =作業シート!G18 -> 40.1 | K16: =IF($J$18>0,J16/$J$18,0) -> 37% | L16: 噴霧ノズル 最大個数
C17: 走行距離 | D17: =IF(D16<>"",VLOOKUP(D16,走行距離,2,FALSE),"") -> 177 | E17: (m/10a) | J17: =作業シート!G19 -> 0.0 | K17: 0%
B18: 噴霧圧力 | D18: 1.5 | E18: (MPa) | H18: 合 計 | I18: =SUM(I15:I17) -> 36 | J18: =J15+J16+J17 -> 108.0 | K18: (L/分） | L18: =IF(D7<>0,VLOOKUP(D7,車速表!A:AH,34,FALSE),0) -> 36
D20: 散 布 量 （L/10a）
B21: エンジン回転数(rpm) | D21: 1600 | E21: 1800 | F21: 2000 | G21: 2200 | H21: 2400 | I21: 2500 | J21: 2600 | K21: 2700 | L21: 2800
B22: 車速段 | C22: 低 - 1 | D22: =IF(ISERROR(作業シート!C23),"",INT(作業シート!C23/10+0.5)*10) -> 1190 | E22: =IF(ISERROR(作業シート!D23),"",INT(作業シート!D23/10+0.5)*10) -> 1060 | F22: =IF(ISERROR(作業シート!E23),"",INT(作業シート!E23/10+0.5)*10) -> 960 | G22: =IF(ISERROR(作業シート!F23),"",INT(作業シート!F23/10+0.5)*10) -> 870 | H22: =IF(ISERROR(作業シート!G23),"",INT(作業シート!G23/10+0.5)*10) -> 760 | I22: =IF(ISERROR(作業シート!H23),"",INT(作業シート!H23/10+0.5)*10) -> 0 | J22: =IF(ISERROR(作業シート!I23),"",INT(作業シート!I23/10+0.5)*10) -> 0 | K22: =IF(ISERROR(作業シート!J23),"",INT(作業シート!J23/10+0.5)*10) -> 0 | L22: =IF(ISERROR(作業シート!K23),"",INT(作業シート!K23/10+0.5)*10) -> 0
C23: 中 - 1 | D23: =IF(ISERROR(作業シート!C24),"",INT(作業シート!C24/10+0.5)*10) -> 1000 | E23: =IF(ISERROR(作業シート!D24),"",INT(作業シート!D24/10+0.5)*10) -> 890 | F23: =IF(ISERROR(作業シート!E24),"",INT(作業シート!E24/10+0.5)*10) -> 800 | G23: =IF(ISERROR(作業シート!F24),"",INT(作業シート!F24/10+0.5)*10) -> 720 | H23: =IF(ISERROR(作業シート!G24),"",INT(作業シート!G24/10+0.5)*10) -> 640 | I23: =IF(ISERROR(作業シート!H24),"",INT(作業シート!H24/10+0.5)*10) -> 0 | J23: =IF(ISERROR(作業シート!I24),"",INT(作業シート!I24/10+0.5)*10) -> 0 | K23: =IF(ISERROR(作業シート!J24),"",INT(作業シート!J24/10+0.5)*10) -> 0 | L23: =IF(ISERROR(作業シート!K24),"",INT(作業シート!K24/10+0.5)*10) -> 0
C24: 低 - 2 | D24: =IF(ISERROR(作業シート!C25),"",INT(作業シート!C25/10+0.5)*10) -> 810 | E24: =IF(ISERROR(作業シート!D25),"",INT(作業シート!D25/10+0.5)*10) -> 720 | F24: =IF(ISERROR(作業シート!E25),"",INT(作業シート!E25/10+0.5)*10) -> 650 | G24: =IF(ISERROR(作業シート!F25),"",INT(作業シート!F25/10+0.5)*10) -> 590 | H24: =IF(ISERROR(作業シート!G25),"",INT(作業シート!G25/10+0.5)*10) -> 520 | I24: =IF(ISERROR(作業シート!H25),"",INT(作業シート!H25/10+0.5)*10) -> 0 | J24: =IF(ISERROR(作業シート!I25),"",INT(作業シート!I25/10+0.5)*10) -> 0 | K24: =IF(ISERROR(作業シート!J25),"",INT(作業シート!J25/10+0.5)*10) -> 0 | L24: =IF(ISERROR(作業シート!K25),"",INT(作業シート!K25/10+0.5)*10) -> 0
C25: 中 - 2 | D25: =IF(ISERROR(作業シート!C26),"",INT(作業シート!C26/10+0.5)*10) -> 690 | E25: =IF(ISERROR(作業シート!D26),"",INT(作業シート!D26/10+0.5)*10) -> 610 | F25: =IF(ISERROR(作業シート!E26),"",INT(作業シート!E26/10+0.5)*10) -> 550 | G25: =IF(ISERROR(作業シート!F26),"",INT(作業シート!F26/10+0.5)*10) -> 500 | H25: =IF(ISERROR(作業シート!G26),"",INT(作業シート!G26/10+0.5)*10) -> 440 | I25: =IF(ISERROR(作業シート!H26),"",INT(作業シート!H26/10+0.5)*10) -> 0 | J25: =IF(ISERROR(作業シート!I26),"",INT(作業シート!I26/10+0.5)*10) -> 0 | K25: =IF(ISERROR(作業シート!J26),"",INT(作業シート!J26/10+0.5)*10) -> 0 | L25: =IF(ISERROR(作業シート!K26),"",INT(作業シート!K26/10+0.5)*10) -> 0
C26: 低 - 3 | D26: =IF(ISERROR(作業シート!C27),"",INT(作業シート!C27/10+0.5)*10) -> 560 | E26: =IF(ISERROR(作業シート!D27),"",INT(作業シート!D27/10+0.5)*10) -> 500 | F26: =IF(ISERROR(作業シート!E27),"",INT(作業シート!E27/10+0.5)*10) -> 450 | G26: =IF(ISERROR(作業シート!F27),"",INT(作業シート!F27/10+0.5)*10) -> 410 | H26: =IF(ISERROR(作業シート!G27),"",INT(作業シート!G27/10+0.5)*10) -> 360 | I26: =IF(ISERROR(作業シート!H27),"",INT(作業シート!H27/10+0.5)*10) -> 0 | J26: =IF(ISERROR(作業シート!I27),"",INT(作業シート!I27/10+0.5)*10) -> 0 | K26: =IF(ISERROR(作業シート!J27),"",INT(作業シート!J27/10+0.5)*10) -> 0 | L26: =IF(ISERROR(作業シート!K27),"",INT(作業シート!K27/10+0.5)*10) -> 0
C27: 中 - 3 | D27: =IF(ISERROR(作業シート!C28),"",INT(作業シート!C28/10+0.5)*10) -> 470 | E27: =IF(ISERROR(作業シート!D28),"",INT(作業シート!D28/10+0.5)*10) -> 420 | F27: =IF(ISERROR(作業シート!E28),"",INT(作業シート!E28/10+0.5)*10) -> 380 | G27: =IF(ISERROR(作業シート!F28),"",INT(作業シート!F28/10+0.5)*10) -> 340 | H27: =IF(ISERROR(作業シート!G28),"",INT(作業シート!G28/10+0.5)*10) -> 300 | I27: =IF(ISERROR(作業シート!H28),"",INT(作業シート!H28/10+0.5)*10) -> 0 | J27: =IF(ISERROR(作業シート!I28),"",INT(作業シート!I28/10+0.5)*10) -> 0 | K27: =IF(ISERROR(作業シート!J28),"",INT(作業シート!J28/10+0.5)*10) -> 0 | L27: =IF(ISERROR(作業シート!K28),"",INT(作業シート!K28/10+0.5)*10) -> 0
B29: 噴霧ポンプ吐出量(L/分) | D29: =IF(ISERROR(作業シート!C29),"",作業シート!C29) -> 87 | E29: =IF(ISERROR(作業シート!D29),"",作業シート!D29) -> 98 | F29: =IF(ISERROR(作業シート!E29),"",作業シート!E29) -> 109 | G29: =IF(ISERROR(作業シート!F29),"",作業シート!F29) -> 120 | H29: =IF(ISERROR(作業シート!G29),"",作業シート!G29) -> 131 | I29: =IF(ISERROR(作業シート!H29),"",作業シート!H29) -> 0 | J29: =IF(ISERROR(作業シート!I29),"",作業シート!I29) -> 0 | K29: =IF(ISERROR(作業シート!J29),"",作業シート!J29) -> 0 | L29: =IF(ISERROR(作業シート!K29),"",作業シート!K29) -> 0
B30: 使用時風量 (H) | D30: =IF(ISERROR(作業シート!C30),"",作業シート!C30) -> 587 | E30: =IF(ISERROR(作業シート!D30),"",作業シート!D30) -> 660 | F30: =IF(ISERROR(作業シート!E30),"",作業シート!E30) -> 733 | G30: =IF(ISERROR(作業シート!F30),"",作業シート!F30) -> 807 | H30: =IF(ISERROR(作業シート!G30),"",作業シート!G30) -> 880 | I30: =IF(ISERROR(作業シート!H30),"",作業シート!H30) -> 0 | J30: =IF(ISERROR(作業シート!I30),"",作業シート!I30) -> 0 | K30: =IF(ISERROR(作業シート!J30),"",作業シート!J30) -> 0 | L30: =IF(ISERROR(作業シート!K30),"",作業シート!K30) -> 0
C31: (㎥/分) (L) | D31: =IF(ISERROR(作業シート!C31),"",作業シート!C31) -> 395 | E31: =IF(ISERROR(作業シート!D31),"",作業シート!D31) -> 445 | F31: =IF(ISERROR(作業シート!E31),"",作業シート!E31) -> 494 | G31: =IF(ISERROR(作業シート!F31),"",作業シート!F31) -> 544 | H31: =IF(ISERROR(作業シート!G31),"",作業シート!G31) -> 593 | I31: =IF(ISERROR(作業シート!H31),"",作業シート!H31) -> 0 | J31: =IF(ISERROR(作業シート!I31),"",作業シート!I31) -> 0 | K31: =IF(ISERROR(作業シート!J31),"",作業シート!J31) -> 0 | L31: =IF(ISERROR(作業シート!K31),"",作業シート!K31) -> 0
B32: 散布時間 | C32: 低-1（分） | D32: =IF(AND(D22>0,$C$32="低-1（分）"),$D$17/1000/作業シート!C6*60,IF(AND(D23>0,$C$32="中-1（分）"),$D$17/1000/作業シート!C7*60,IF(AND(D24>0,$C$32="低-2（分）"),$D$17/1000/作業シート!C8*60,IF(AND(D25>0,$C$32="中-2（分）"),$D$17/1000/作業シート!C9*60,IF(AND(D26>0,$C$32="低-3（分）"),$D$17/1000/作業シート!C10*60,IF(AND(D27>0,$C$32="中-3（分）"),$D$17/1000/作業シート!C11*60,0)))))) -> 11.1 | E32: =IF(AND(E22>0,$C$32="低-1（分）"),$D$17/1000/作業シート!D6*60,IF(AND(E23>0,$C$32="中-1（分）"),$D$17/1000/作業シート!D7*60,IF(AND(E24>0,$C$32="低-2（分）"),$D$17/1000/作業シート!D8*60,IF(AND(E25>0,$C$32="中-2（分）"),$D$17/1000/作業シート!D9*60,IF(AND(E26>0,$C$32="低-3（分）"),$D$17/1000/作業シート!D10*60,IF(AND(E27>0,$C$32="中-3（分）"),$D$17/1000/作業シート!D11*60,0)))))) -> 9.8 | F32: =IF(AND(F22>0,$C$32="低-1（分）"),$D$17/1000/作業シート!E6*60,IF(AND(F23>0,$C$32="中-1（分）"),$D$17/1000/作業シート!E7*60,IF(AND(F24>0,$C$32="低-2（分）"),$D$17/1000/作業シート!E8*60,IF(AND(F25>0,$C$32="中-2（分）"),$D$17/1000/作業シート!E9*60,IF(AND(F26>0,$C$32="低-3（分）"),$D$17/1000/作業シート!E10*60,IF(AND(F27>0,$C$32="中-3（分）"),$D$17/1000/作業シート!E11*60,0)))))) -> 8.9 | G32: =IF(AND(G22>0,$C$32="低-1（分）"),$D$17/1000/作業シート!F6*60,IF(AND(G23>0,$C$32="中-1（分）"),$D$17/1000/作業シート!F7*60,IF(AND(G24>0,$C$32="低-2（分）"),$D$17/1000/作業シート!F8*60,IF(AND(G25>0,$C$32="中-2（分）"),$D$17/1000/作業シート!F9*60,IF(AND(G26>0,$C$32="低-3（分）"),$D$17/1000/作業シート!F10*60,IF(AND(G27>0,$C$32="中-3（分）"),$D$17/1000/作業シート!F11*60,0)))))) -> 8.0 | H32: =IF(AND(H22>0,$C$32="低-1（分）"),$D$17/1000/作業シート!G6*60,IF(AND(H23>0,$C$32="中-1（分）"),$D$17/1000/作業シート!G7*60,IF(AND(H24>0,$C$32="低-2（分）"),$D$17/1000/作業シート!G8*60,IF(AND(H25>0,$C$32="中-2（分）"),$D$17/1000/作業シート!G9*60,IF(AND(H26>0,$C$32="低-3（分）"),$D$17/1000/作業シート!G10*60,IF(AND(H27>0,$C$32="中-3（分）"),$D$17/1000/作業シート!G11*60,0)))))) -> 7.1 | I32: =IF(AND(I22>0,$C$32="低-1（分）"),$D$17/1000/作業シート!H6*60,IF(AND(I23>0,$C$32="中-1（分）"),$D$17/1000/作業シート!H7*60,IF(AND(I24>0,$C$32="低-2（分）"),$D$17/1000/作業シート!H8*60,IF(AND(I25>0,$C$32="中-2（分）"),$D$17/1000/作業シート!H9*60,IF(AND(I26>0,$C$32="低-3（分）"),$D$17/1000/作業シート!H10*60,IF(AND(I27>0,$C$32="中-3（分）"),$D$17/1000/作業シート!H11*60,0)))))) -> 0.0 | J32: =IF(AND(J22>0,$C$32="低-1（分）"),$D$17/1000/作業シート!I6*60,IF(AND(J23>0,$C$32="中-1（分）"),$D$17/1000/作業シート!I7*60,IF(AND(J24>0,$C$32="低-2（分）"),$D$17/1000/作業シート!I8*60,IF(AND(J25>0,$C$32="中-2（分）"),$D$17/1000/作業シート!I9*60,IF(AND(J26>0,$C$32="低-3（分）"),$D$17/1000/作業シート!I10*60,IF(AND(J27>0,$C$32="中-3（分）"),$D$17/1000/作業シート!I11*60,0)))))) -> 0.0 | K32: =IF(AND(K22>0,$C$32="低-1（分）"),$D$17/1000/作業シート!J6*60,IF(AND(K23>0,$C$32="中-1（分）"),$D$17/1000/作業シート!J7*60,IF(AND(K24>0,$C$32="低-2（分）"),$D$17/1000/作業シート!J8*60,IF(AND(K25>0,$C$32="中-2（分）"),$D$17/1000/作業シート!J9*60,IF(AND(K26>0,$C$32="低-3（分）"),$D$17/1000/作業シート!J10*60,IF(AND(K27>0,$C$32="中-3（分）"),$D$17/1000/作業シート!J11*60,0)))))) -> 0.0 | L32: =IF(AND(L22>0,$C$32="低-1（分）"),$D$17/1000/作業シート!K6*60,IF(AND(L23>0,$C$32="中-1（分）"),$D$17/1000/作業シート!K7*60,IF(AND(L24>0,$C$32="低-2（分）"),$D$17/1000/作業シート!K8*60,IF(AND(L25>0,$C$32="中-2（分）"),$D$17/1000/作業シート!K9*60,IF(AND(L26>0,$C$32="低-3（分）"),$D$17/1000/作業シート!K10*60,IF(AND(L27>0,$C$32="中-3（分）"),$D$17/1000/作業シート!K11*60,0)))))) -> 0.0
B35: ■散布条件-2
B37: 栽培品目/圃場名 | D37: リンゴ園-B | G37: 噴霧方向 | H37: 噴板名称 | I37: ノズル個数 | J37: 吐出量
G38: 全周 | H38: Φ 1.2 | I38: 28 | J38: =作業シート!G36 -> 62.4 | K38: =IF($J$41>0,J38/$J$41,0) -> 100%
B39: 散布幅（列間隔） | D39: 4.5m | J39: =作業シート!G37 -> 0.0 | K39: =IF($J$41>0,J39/$J$41,0) -> 0% | L39: 噴霧ノズル 最大個数
C40: 走行距離 | D40: =IF(D39<>"",VLOOKUP(D39,走行距離,2,FALSE),"") -> 222 | E40: (m/10a) | J40: =作業シート!G38 -> 0.0 | K40: 0%
B41: 噴霧圧力 | D41: 1.5 | E41: (MPa) | H41: 合 計 | I41: =SUM(I38:I40) -> 28 | J41: =J38+J39+J40 -> 62.4 | K41: (L/分） | L41: =IF(D7<>0,VLOOKUP(D7,車速表!A:AH,34,FALSE),0) -> 36
D43: 散 布 量 （L/10a）
B44: エンジン回転数(rpm) | D44: 1600 | E44: 1800 | F44: 2000 | G44: 2200 | H44: 2400 | I44: 2500 | J44: 2600 | K44: 2700 | L44: 2800
B45: 車速段 | C45: 低 - 1 | D45: =IF(ISERROR(作業シート!C42),"",INT(作業シート!C42/10+0.5)*10) -> 870 | E45: =IF(ISERROR(作業シート!D42),"",INT(作業シート!D42/10+0.5)*10) -> 770 | F45: =IF(ISERROR(作業シート!E42),"",INT(作業シート!E42/10+0.5)*10) -> 690 | G45: =IF(ISERROR(作業シート!F42),"",INT(作業シート!F42/10+0.5)*10) -> 630 | H45: =IF(ISERROR(作業シート!G42),"",INT(作業シート!G42/10+0.5)*10) -> 550 | I45: =IF(ISERROR(作業シート!H42),"",INT(作業シート!H42/10+0.5)*10) -> 0 | J45: =IF(ISERROR(作業シート!I42),"",INT(作業シート!I42/10+0.5)*10) -> 0 | K45: =IF(ISERROR(作業シート!J42),"",INT(作業シート!J42/10+0.5)*10) -> 0 | L45: =IF(ISERROR(作業シート!K42),"",INT(作業シート!K42/10+0.5)*10) -> 0
C46: 中 - 1 | D46: =IF(ISERROR(作業シート!C43),"",INT(作業シート!C43/10+0.5)*10) -> 720 | E46: =IF(ISERROR(作業シート!D43),"",INT(作業シート!D43/10+0.5)*10) -> 640 | F46: =IF(ISERROR(作業シート!E43),"",INT(作業シート!E43/10+0.5)*10) -> 580 | G46: =IF(ISERROR(作業シート!F43),"",INT(作業シート!F43/10+0.5)*10) -> 530 | H46: =IF(ISERROR(作業シート!G43),"",INT(作業シート!G43/10+0.5)*10) -> 460 | I46: =IF(ISERROR(作業シート!H43),"",INT(作業シート!H43/10+0.5)*10) -> 0 | J46: =IF(ISERROR(作業シート!I43),"",INT(作業シート!I43/10+0.5)*10) -> 0 | K46: =IF(ISERROR(作業シート!J43),"",INT(作業シート!J43/10+0.5)*10) -> 0 | L46: =IF(ISERROR(作業シート!K43),"",INT(作業シート!K43/10+0.5)*10) -> 0
C47: 低 - 2 | D47: =IF(ISERROR(作業シート!C44),"",INT(作業シート!C44/10+0.5)*10) -> 590 | E47: =IF(ISERROR(作業シート!D44),"",INT(作業シート!D44/10+0.5)*10) -> 530 | F47: =IF(ISERROR(作業シート!E44),"",INT(作業シート!E44/10+0.5)*10) -> 470 | G47: =IF(ISERROR(作業シート!F44),"",INT(作業シート!F44/10+0.5)*10) -> 430 | H47: =IF(ISERROR(作業シート!G44),"",INT(作業シート!G44/10+0.5)*10) -> 380 | I47: =IF(ISERROR(作業シート!H44),"",INT(作業シート!H44/10+0.5)*10) -> 0 | J47: =IF(ISERROR(作業シート!I44),"",INT(作業シート!I44/10+0.5)*10) -> 0 | K47: =IF(ISERROR(作業シート!J44),"",INT(作業シート!J44/10+0.5)*10) -> 0 | L47: =IF(ISERROR(作業シート!K44),"",INT(作業シート!K44/10+0.5)*10) -> 0
C48: 中 - 2 | D48: =IF(ISERROR(作業シート!C45),"",INT(作業シート!C45/10+0.5)*10) -> 500 | E48: =IF(ISERROR(作業シート!D45),"",INT(作業シート!D45/10+0.5)*10) -> 440 | F48: =IF(ISERROR(作業シート!E45),"",INT(作業シート!E45/10+0.5)*10) -> 400 | G48: =IF(ISERROR(作業シート!F45),"",INT(作業シート!F45/10+0.5)*10) -> 360 | H48: =IF(ISERROR(作業シート!G45),"",INT(作業シート!G45/10+0.5)*10) -> 320 | I48: =IF(ISERROR(作業シート!H45),"",INT(作業シート!H45/10+0.5)*10) -> 0 | J48: =IF(ISERROR(作業シート!I45),"",INT(作業シート!I45/10+0.5)*10) -> 0 | K48: =IF(ISERROR(作業シート!J45),"",INT(作業シート!J45/10+0.5)*10) -> 0 | L48: =IF(ISERROR(作業シート!K45),"",INT(作業シート!K45/10+0.5)*10) -> 0
C49: 低 - 3 | D49: =IF(ISERROR(作業シート!C46),"",INT(作業シート!C46/10+0.5)*10) -> 410 | E49: =IF(ISERROR(作業シート!D46),"",INT(作業シート!D46/10+0.5)*10) -> 360 | F49: =IF(ISERROR(作業シート!E46),"",INT(作業シート!E46/10+0.5)*10) -> 320 | G49: =IF(ISERROR(作業シート!F46),"",INT(作業シート!F46/10+0.5)*10) -> 300 | H49: =IF(ISERROR(作業シート!G46),"",INT(作業シート!G46/10+0.5)*10) -> 260 | I49: =IF(ISERROR(作業シート!H46),"",INT(作業シート!H46/10+0.5)*10) -> 0 | J49: =IF(ISERROR(作業シート!I46),"",INT(作業シート!I46/10+0.5)*10) -> 0 | K49: =IF(ISERROR(作業シート!J46),"",INT(作業シート!J46/10+0.5)*10) -> 0 | L49: =IF(ISERROR(作業シート!K46),"",INT(作業シート!K46/10+0.5)*10) -> 0
C50: 中 - 3 | D50: =IF(ISERROR(作業シート!C47),"",INT(作業シート!C47/10+0.5)*10) -> 340 | E50: =IF(ISERROR(作業シート!D47),"",INT(作業シート!D47/10+0.5)*10) -> 300 | F50: =IF(ISERROR(作業シート!E47),"",INT(作業シート!E47/10+0.5)*10) -> 270 | G50: =IF(ISERROR(作業シート!F47),"",INT(作業シート!F47/10+0.5)*10) -> 250 | H50: =IF(ISERROR(作業シート!G47),"",INT(作業シート!G47/10+0.5)*10) -> 220 | I50: =IF(ISERROR(作業シート!H47),"",INT(作業シート!H47/10+0.5)*10) -> 0 | J50: =IF(ISERROR(作業シート!I47),"",INT(作業シート!I47/10+0.5)*10) -> 0 | K50: =IF(ISERROR(作業シート!J47),"",INT(作業シート!J47/10+0.5)*10) -> 0 | L50: =IF(ISERROR(作業シート!K47),"",INT(作業シート!K47/10+0.5)*10) -> 0
B52: 噴霧ポンプ吐出量(L/分) | D52: =IF(ISERROR(作業シート!C48),"",作業シート!C48) -> 87 | E52: =IF(ISERROR(作業シート!D48),"",作業シート!D48) -> 98 | F52: =IF(ISERROR(作業シート!E48),"",作業シート!E48) -> 109 | G52: =IF(ISERROR(作業シート!F48),"",作業シート!F48) -> 120 | H52: =IF(ISERROR(作業シート!G48),"",作業シート!G48) -> 131 | I52: =IF(ISERROR(作業シート!H48),"",作業シート!H48) -> 0 | J52: =IF(ISERROR(作業シート!I48),"",作業シート!I48) -> 0 | K52: =IF(ISERROR(作業シート!J48),"",作業シート!J48) -> 0 | L52: =IF(ISERROR(作業シート!K48),"",作業シート!K48) -> 0
B53: 使用時風量 (H) | D53: =IF(ISERROR(作業シート!C49),"",作業シート!C49) -> 587 | E53: =IF(ISERROR(作業シート!D49),"",作業シート!D49) -> 660 | F53: =IF(ISERROR(作業シート!E49),"",作業シート!E49) -> 733 | G53: =IF(ISERROR(作業シート!F49),"",作業シート!F49) -> 807 | H53: =IF(ISERROR(作業シート!G49),"",作業シート!G49) -> 880 | I53: =IF(ISERROR(作業シート!H49),"",作業シート!H49) -> 0 | J53: =IF(ISERROR(作業シート!I49),"",作業シート!I49) -> 0 | K53: =IF(ISERROR(作業シート!J49),"",作業シート!J49) -> 0 | L53: =IF(ISERROR(作業シート!K49),"",作業シート!K49) -> 0
C54: (㎥/分) (L) | D54: =IF(ISERROR(作業シート!C50),"",作業シート!C50) -> 395 | E54: =IF(ISERROR(作業シート!D50),"",作業シート!D50) -> 445 | F54: =IF(ISERROR(作業シート!E50),"",作業シート!E50) -> 494 | G54: =IF(ISERROR(作業シート!F50),"",作業シート!F50) -> 544 | H54: =IF(ISERROR(作業シート!G50),"",作業シート!G50) -> 593 | I54: =IF(ISERROR(作業シート!H50),"",作業シート!H50) -> 0 | J54: =IF(ISERROR(作業シート!I50),"",作業シート!I50) -> 0 | K54: =IF(ISERROR(作業シート!J50),"",作業シート!J50) -> 0 | L54: =IF(ISERROR(作業シート!K50),"",作業シート!K50) -> 0
B55: 散布時間 | C55: 低-1（分） | D55: =IF(AND(D45>0,$C$55="低-1（分）"),$D$40/1000/作業シート!C6*60,IF(AND(D46>0,$C$55="中-1（分）"),$D$40/1000/作業シート!C7*60,IF(AND(D47>0,$C$55="低-2（分）"),$D$40/1000/作業シート!C8*60,IF(AND(D48>0,$C$55="中-2（分）"),$D$40/1000/作業シート!C9*60,IF(AND(D49>0,$C$55="低-3（分）"),$D$40/1000/作業シート!C10*60,IF(AND(D50>0,$C$55="中-3（分）"),$D$40/1000/作業シート!C11*60,0)))))) -> 13.9 | E55: =IF(AND(E45>0,$C$55="低-1（分）"),$D$40/1000/作業シート!D6*60,IF(AND(E46>0,$C$55="中-1（分）"),$D$40/1000/作業シート!D7*60,IF(AND(E47>0,$C$55="低-2（分）"),$D$40/1000/作業シート!D8*60,IF(AND(E48>0,$C$55="中-2（分）"),$D$40/1000/作業シート!D9*60,IF(AND(E49>0,$C$55="低-3（分）"),$D$40/1000/作業シート!D10*60,IF(AND(E50>0,$C$55="中-3（分）"),$D$40/1000/作業シート!D11*60,0)))))) -> 12.3 | F55: =IF(AND(F45>0,$C$55="低-1（分）"),$D$40/1000/作業シート!E6*60,IF(AND(F46>0,$C$55="中-1（分）"),$D$40/1000/作業シート!E7*60,IF(AND(F47>0,$C$55="低-2（分）"),$D$40/1000/作業シート!E8*60,IF(AND(F48>0,$C$55="中-2（分）"),$D$40/1000/作業シート!E9*60,IF(AND(F49>0,$C$55="低-3（分）"),$D$40/1000/作業シート!E10*60,IF(AND(F50>0,$C$55="中-3（分）"),$D$40/1000/作業シート!E11*60,0)))))) -> 11.1 | G55: =IF(AND(G45>0,$C$55="低-1（分）"),$D$40/1000/作業シート!F6*60,IF(AND(G46>0,$C$55="中-1（分）"),$D$40/1000/作業シート!F7*60,IF(AND(G47>0,$C$55="低-2（分）"),$D$40/1000/作業シート!F8*60,IF(AND(G48>0,$C$55="中-2（分）"),$D$40/1000/作業シート!F9*60,IF(AND(G49>0,$C$55="低-3（分）"),$D$40/1000/作業シート!F10*60,IF(AND(G50>0,$C$55="中-3（分）"),$D$40/1000/作業シート!F11*60,0)))))) -> 10.1 | H55: =IF(AND(H45>0,$C$55="低-1（分）"),$D$40/1000/作業シート!G6*60,IF(AND(H46>0,$C$55="中-1（分）"),$D$40/1000/作業シート!G7*60,IF(AND(H47>0,$C$55="低-2（分）"),$D$40/1000/作業シート!G8*60,IF(AND(H48>0,$C$55="中-2（分）"),$D$40/1000/作業シート!G9*60,IF(AND(H49>0,$C$55="低-3（分）"),$D$40/1000/作業シート!G10*60,IF(AND(H50>0,$C$55="中-3（分）"),$D$40/1000/作業シート!G11*60,0)))))) -> 8.9 | I55: =IF(AND(I45>0,$C$55="低-1（分）"),$D$40/1000/作業シート!H6*60,IF(AND(I46>0,$C$55="中-1（分）"),$D$40/1000/作業シート!H7*60,IF(AND(I47>0,$C$55="低-2（分）"),$D$40/1000/作業シート!H8*60,IF(AND(I48>0,$C$55="中-2（分）"),$D$40/1000/作業シート!H9*60,IF(AND(I49>0,$C$55="低-3（分）"),$D$40/1000/作業シート!H10*60,IF(AND(I50>0,$C$55="中-3（分）"),$D$40/1000/作業シート!H11*60,0)))))) -> 0.0 | J55: =IF(AND(J45>0,$C$55="低-1（分）"),$D$40/1000/作業シート!I6*60,IF(AND(J46>0,$C$55="中-1（分）"),$D$40/1000/作業シート!I7*60,IF(AND(J47>0,$C$55="低-2（分）"),$D$40/1000/作業シート!I8*60,IF(AND(J48>0,$C$55="中-2（分）"),$D$40/1000/作業シート!I9*60,IF(AND(J49>0,$C$55="低-3（分）"),$D$40/1000/作業シート!I10*60,IF(AND(J50>0,$C$55="中-3（分）"),$D$40/1000/作業シート!I11*60,0)))))) -> 0.0 | K55: =IF(AND(K45>0,$C$55="低-1（分）"),$D$40/1000/作業シート!J6*60,IF(AND(K46>0,$C$55="中-1（分）"),$D$40/1000/作業シート!J7*60,IF(AND(K47>0,$C$55="低-2（分）"),$D$40/1000/作業シート!J8*60,IF(AND(K48>0,$C$55="中-2（分）"),$D$40/1000/作業シート!J9*60,IF(AND(K49>0,$C$55="低-3（分）"),$D$40/1000/作業シート!J10*60,IF(AND(K50>0,$C$55="中-3（分）"),$D$40/1000/作業シート!J11*60,0)))))) -> 0.0 | L55: =IF(AND(L45>0,$C$55="低-1（分）"),$D$40/1000/作業シート!K6*60,IF(AND(L46>0,$C$55="中-1（分）"),$D$40/1000/作業シート!K7*60,IF(AND(L47>0,$C$55="低-2（分）"),$D$40/1000/作業シート!K8*60,IF(AND(L48>0,$C$55="中-2（分）"),$D$40/1000/作業シート!K9*60,IF(AND(L49>0,$C$55="低-3（分）"),$D$40/1000/作業シート!K10*60,IF(AND(L50>0,$C$55="中-3（分）"),$D$40/1000/作業シート!K11*60,0)))))) -> 0.0
B58: 噴霧ポンプ圧力の標準値と単位は、 | G58: ※防除効果の向上と安全作業のために、できるだけ遅い車速段の選択を強くお勧め致します。
B59: 1.5MPa＝15bar≒15kgf/cm2です。 | G59: ※入力したノズル個数と吐出量合計(L/分)が能力を超えていないか確認してください。
B60: 散布量表の数値が斜体文字の場合、そのエンジン回転数では噴霧ポンプの吐出量が噴霧ノズルの吐出量よりも小さく、設定した噴霧圧力まで上がらない場合があります。 | G60: ※噴霧ポンプ吐出量は、薬液タンクへ戻る余水分の約15%を引いて表示しています。
G61: ※計算上の判断により、取扱説明書と若干異なる場合があります。
G62: ※万一、この散布量計算を利用して生じたいかなる損失にも弊社は一切の責任を負いません。

Sheet 作業シート (hidden)
A3: 製 品 名 | B3: 3S- | C3: =■散布量計算シート!D7 -> FST1063H | M3: 製品名 | N3: 3S- | O3: =■散布量計算シート!D7 -> FST1063H
A5: エンジン回転数(rpm) | C5: 1600 | D5: 1800 | E5: 2000 | F5: 2200 | G5: 2400 | H5: 2500 | I5: 2600 | J5: 2700 | K5: 2800 | M5: エンジン回転数(rpm) | O5: 1600 | P5: 1800 | Q5: 2000 | R5: 2200 | S5: 2400 | T5: 2500 | U5: 2600 | V5: 2700 | W5: 2800
A6: 車速 | B6: 低-1 | C6: =G6*0.64 -> 1.0 | D6: =G6*0.72 -> 1.1 | E6: =G6*0.8 -> 1.2 | F6: =G6*0.88 -> 1.3 | G6: =IF(ISERROR(VLOOKUP($C$3,車速表!$A:$AE,2,FALSE))=TRUE,0,VLOOKUP($C$3,車速表!$A:$AE,2,FALSE)) -> 1.5 | H6: =IF(ISERROR(VLOOKUP($C$3,車速表!$A:$AE,3,FALSE))=TRUE,0,VLOOKUP($C$3,車速表!$A:$AE,3,FALSE)) -> 0.0 | I6: =IF(ISERROR(VLOOKUP($C$3,車速表!$A:$AE,4,FALSE))=TRUE,0,VLOOKUP($C$3,車速表!$A:$AE,4,FALSE)) -> 0.0 | J6: =IF(ISERROR(VLOOKUP($C$3,車速表!$A:$AE,5,FALSE))=TRUE,0,VLOOKUP($C$3,車速表!$A:$AE,5,FALSE)) -> 0.0 | K6: =IF(ISERROR(VLOOKUP($C$3,車速表!$A:$AE,6,FALSE))=TRUE,0,VLOOKUP($C$3,車速表!$A:$AE,6,FALSE)) -> 0.0 | M6: 車速 (km/h) | N6: 低-1 | O6: =S6*0.64 -> 1.0 | P6: =S6*0.72 -> 1.1 | Q6: =S6*0.8 -> 1.2 | R6: =S6*0.88 -> 1.3 | S6: =IF(ISERROR(VLOOKUP($C$3,車速表!$A:$AE,2,FALSE))=TRUE,0,VLOOKUP($C$3,車速表!$A:$AE,2,FALSE)) -> 1.5 | T6: =IF(ISERROR(VLOOKUP($C$3,車速表!$A:$AE,3,FALSE))=TRUE,0,VLOOKUP($C$3,車速表!$A:$AE,3,FALSE)) -> 0.0 | U6: =IF(ISERROR(VLOOKUP($C$3,車速表!$A:$AE,4,FALSE))=TRUE,0,VLOOKUP($C$3,車速表!$A:$AE,4,FALSE)) -> 0.0 | V6: =IF(ISERROR(VLOOKUP($C$3,車速表!$A:$AE,5,FALSE))=TRUE,0,VLOOKUP($C$3,車速表!$A:$AE,5,FALSE)) -> 0.0 | W6: =IF(ISERROR(VLOOKUP($C$3,車速表!$A:$AE,6,FALSE))=TRUE,0,VLOOKUP($C$3,車速表!$A:$AE,6,FALSE)) -> 0.0
B7: 中-1 | C7: 1.2 | D7: 1.3 | E7: 1.4 | F7: 1.6 | G7: =IF(ISERROR(VLOOKUP($C$3,車速表!$A:$AE,7,FALSE))=TRUE,0,VLOOKUP($C$3,車速表!$A:$AE,7,FALSE)) -> 1.8 | H7: =IF(ISERROR(VLOOKUP($C$3,車速表!$A:$AE,8,FALSE))=TRUE,0,VLOOKUP($C$3,車速表!$A:$AE,8,FALSE)) -> 0.0 | I7: =IF(ISERROR(VLOOKUP($C$3,車速表!$A:$AE,9,FALSE))=TRUE,0,VLOOKUP($C$3,車速表!$A:$AE,9,FALSE)) -> 0.0 | J7: =IF(ISERROR(VLOOKUP($C$3,車速表!$A:$AE,10,FALSE))=TRUE,0,VLOOKUP($C$3,車速表!$A:$AE,10,FALSE)) -> 0.0 | K7: =IF(ISERROR(VLOOKUP($C$3,車速表!$A:$AE,11,FALSE))=TRUE,0,VLOOKUP($C$3,車速表!$A:$AE,11,FALSE)) -> 0.0 | N7: 中-1 | O7: 1.2 | P7: 1.3 | Q7: 1.4 | R7: 1.6 | S7: =IF(ISERROR(VLOOKUP($C$3,車速表!$A:$AE,7,FALSE))=TRUE,0,VLOOKUP($C$3,車速表!$A:$AE,7,FALSE)) -> 1.8 | T7: =IF(ISERROR(VLOOKUP($C$3,車速表!$A:$AE,8,FALSE))=TRUE,0,VLOOKUP($C$3,車速表!$A:$AE,8,FALSE)) -> 0.0 | U7: =IF(ISERROR(VLOOKUP($C$3,車速表!$A:$AE,9,FALSE))=TRUE,0,VLOOKUP($C$3,車速表!$A:$AE,9,FALSE)) -> 0.0 | V7: =IF(ISERROR(VLOOKUP($C$3,車速表!$A:$AE,10,FALSE))=TRUE,0,VLOOKUP($C$3,車速表!$A:$AE,10,FALSE)) -> 0.0 | W7: =IF(ISERROR(VLOOKUP($C$3,車速表!$A:$AE,11,FALSE))=TRUE,0,VLOOKUP($C$3,車速表!$A:$AE,11,FALSE)) -> 0.0
B8: 低-2 | C8: 1.4 | D8: 1.6 | E8: 1.8 | F8: 1.9 | G8: =IF(ISERROR(VLOOKUP($C$3,車速表!$A:$AE,12,FALSE))=TRUE,0,VLOOKUP($C$3,車速表!$A:$AE,12,FALSE)) -> 2.2 | H8: =IF(ISERROR(VLOOKUP($C$3,車速表!$A:$AE,13,FALSE))=TRUE,0,VLOOKUP($C$3,車速表!$A:$AE,13,FALSE)) -> 0.0 | I8: =IF(ISERROR(VLOOKUP($C$3,車速表!$A:$AE,14,FALSE))=TRUE,0,VLOOKUP($C$3,車速表!$A:$AE,14,FALSE)) -> 0.0 | J8: =IF(ISERROR(VLOOKUP($C$3,車速表!$A:$AE,15,FALSE))=TRUE,0,VLOOKUP($C$3,車速表!$A:$AE,15,FALSE)) -> 0.0 | K8: =IF(ISERROR(VLOOKUP($C$3,車速表!$A:$AE,16,FALSE))=TRUE,0,VLOOKUP($C$3,車速表!$A:$AE,16,FALSE)) -> 0.0 | N8: 低-2 | O8: 1.4 | P8: 1.6 | Q8: 1.8 | R8: 1.9 | S8: =IF(ISERROR(VLOOKUP($C$3,車速表!$A:$AE,12,FALSE))=TRUE,0,VLOOKUP($C$3,車速表!$A:$AE,12,FALSE)) -> 2.2 | T8: =IF(ISERROR(VLOOKUP($C$3,車速表!$A:$AE,13,FALSE))=TRUE,0,VLOOKUP($C$3,車速表!$A:$AE,13,FALSE)) -> 0.0 | U8: =IF(ISERROR(VLOOKUP($C$3,車速表!$A:$AE,14,FALSE))=TRUE,0,VLOOKUP($C$3,車速表!$A:$AE,14,FALSE)) -> 0.0 | V8: =IF(ISERROR(VLOOKUP($C$3,車速表!$A:$AE,15,FALSE))=TRUE,0,VLOOKUP($C$3,車速表!$A:$AE,15,FALSE)) -> 0.0 | W8: =IF(ISERROR(VLOOKUP($C$3,車速表!$A:$AE,16,FALSE))=TRUE,0,VLOOKUP($C$3,車速表!$A:$AE,16,FALSE)) -> 0.0
B9: 中-2 | C9: 1.7 | D9: 1.9 | E9: 2.1 | F9: 2.3 | G9: =IF(ISERROR(VLOOKUP($C$3,車速表!$A:$AE,17,FALSE))=TRUE,0,VLOOKUP($C$3,車速表!$A:$AE,17,FALSE)) -> 2.6 | H9: =IF(ISERROR(VLOOKUP($C$3,車速表!$A:$AE,18,FALSE))=TRUE,0,VLOOKUP($C$3,車速表!$A:$AE,18,FALSE)) -> 0.0 | I9: =IF(ISERROR(VLOOKUP($C$3,車速表!$A:$AE,19,FALSE))=TRUE,0,VLOOKUP($C$3,車速表!$A:$AE,19,FALSE)) -> 0.0 | J9: =IF(ISERROR(VLOOKUP($C$3,車速表!$A:$AE,20,FALSE))=TRUE,0,VLOOKUP($C$3,車速表!$A:$AE,20,FALSE)) -> 0.0 | K9: =IF(ISERROR(VLOOKUP($C$3,車速表!$A:$AE,21,FALSE))=TRUE,0,VLOOKUP($C$3,車速表!$A:$AE,21,FALSE)) -> 0.0 | N9: 中-2 | O9: 1.7 | P9: 1.9 | Q9: 2.1 | R9: 2.3 | S9: =IF(ISERROR(VLOOKUP($C$3,車速表!$A:$AE,17,FALSE))=TRUE,0,VLOOKUP($C$3,車速表!$A:$AE,17,FALSE)) -> 2.6 | T9: =IF(ISERROR(VLOOKUP($C$3,車速表!$A:$AE,18,FALSE))=TRUE,0,VLOOKUP($C$3,車速表!$A:$AE,18,FALSE)) -> 0.0 | U9: =IF(ISERROR(VLOOKUP($C$3,車速表!$A:$AE,19,FALSE))=TRUE,0,VLOOKUP($C$3,車速表!$A:$AE,19,FALSE)) -> 0.0 | V9: =IF(ISERROR(VLOOKUP($C$3,車速表!$A:$AE,20,FALSE))=TRUE,0,VLOOKUP($C$3,車速表!$A:$AE,20,FALSE)) -> 0.0 | W9: =IF(ISERROR(VLOOKUP($C$3,車速表!$A:$AE,21,FALSE))=TRUE,0,VLOOKUP($C$3,車速表!$A:$AE,21,FALSE)) -> 0.0
B10: 低-3 | C10: 2.0 | D10: 2.3 | E10: 2.6 | F10: 2.8 | G10: =IF(ISERROR(VLOOKUP($C$3,車速表!$A:$AE,22,FALSE))=TRUE,0,VLOOKUP($C$3,車速表!$A:$AE,22,FALSE)) -> 3.2 | H10: =IF(ISERROR(VLOOKUP($C$3,車速表!$A:$AE,23,FALSE))=TRUE,0,VLOOKUP($C$3,車速表!$A:$AE,23,FALSE)) -> 0.0 | I10: =IF(ISERROR(VLOOKUP($C$3,車速表!$A:$AE,24,FALSE))=TRUE,0,VLOOKUP($C$3,車速表!$A:$AE,24,FALSE)) -> 0.0 | J10: =IF(ISERROR(VLOOKUP($C$3,車速表!$A:$AE,25,FALSE))=TRUE,0,VLOOKUP($C$3,車速表!$A:$AE,25,FALSE)) -> 0.0 | K10: =IF(ISERROR(VLOOKUP($C$3,車速表!$A:$AE,26,FALSE))=TRUE,0,VLOOKUP($C$3,車速表!$A:$AE,26,FALSE)) -> 0.0 | M10: Travel speed | N10: 低-3 | O10: 2.0 | P10: 2.3 | Q10: 2.6 | R10: 2.8 | S10: =IF(ISERROR(VLOOKUP($C$3,車速表!$A:$AE,22,FALSE))=TRUE,0,VLOOKUP($C$3,車速表!$A:$AE,22,FALSE)) -> 3.2 | T10: =IF(ISERROR(VLOOKUP($C$3,車速表!$A:$AE,23,FALSE))=TRUE,0,VLOOKUP($C$3,車速表!$A:$AE,23,FALSE)) -> 0.0 | U10: =IF(ISERROR(VLOOKUP($C$3,車速表!$A:$AE,24,FALSE))=TRUE,0,VLOOKUP($C$3,車速表!$A:$AE,24,FALSE)) -> 0.0 | V10: =IF(ISERROR(VLOOKUP($C$3,車速表!$A:$AE,25,FALSE))=TRUE,0,VLOOKUP($C$3,車速表!$A:$AE,25,FALSE)) -> 0.0 | W10: =IF(ISERROR(VLOOKUP($C$3,車速表!$A:$AE,26,FALSE))=TRUE,0,VLOOKUP($C$3,車速表!$A:$AE,26,FALSE)) -> 0.0
B11: 中-3 | C11: 2.4 | D11: 2.7 | E11: 3.0 | F11: 3.3 | G11: =IF(ISERROR(VLOOKUP($C$3,車速表!$A:$AE,27,FALSE))=TRUE,0,VLOOKUP($C$3,車速表!$A:$AE,27,FALSE)) -> 3.8 | H11: =IF(ISERROR(VLOOKUP($C$3,車速表!$A:$AE,28,FALSE))=TRUE,0,VLOOKUP($C$3,車速表!$A:$AE,28,FALSE)) -> 0.0 | I11: =IF(ISERROR(VLOOKUP($C$3,車速表!$A:$AE,29,FALSE))=TRUE,0,VLOOKUP($C$3,車速表!$A:$AE,29,FALSE)) -> 0.0 | J11: =IF(ISERROR(VLOOKUP($C$3,車速表!$A:$AE,30,FALSE))=TRUE,0,VLOOKUP($C$3,車速表!$A:$AE,30,FALSE)) -> 0.0 | K11: =IF(ISERROR(VLOOKUP($C$3,車速表!$A:$AE,31,FALSE))=TRUE,0,VLOOKUP($C$3,車速表!$A:$AE,31,FALSE)) -> 0.0 | N11: 中-3 | O11: 2.4 | P11: 2.7 | Q11: 3.0 | R11: 3.3 | S11: =IF(ISERROR(VLOOKUP($C$3,車速表!$A:$AE,27,FALSE))=TRUE,0,VLOOKUP($C$3,車速表!$A:$AE,27,FALSE)) -> 3.8 | T11: =IF(ISERROR(VLOOKUP($C$3,車速表!$A:$AE,28,FALSE))=TRUE,0,VLOOKUP($C$3,車速表!$A:$AE,28,FALSE)) -> 0.0 | U11: =IF(ISERROR(VLOOKUP($C$3,車速表!$A:$AE,29,FALSE))=TRUE,0,VLOOKUP($C$3,車速表!$A:$AE,29,FALSE)) -> 0.0 | V11: =IF(ISERROR(VLOOKUP($C$3,車速表!$A:$AE,30,FALSE))=TRUE,0,VLOOKUP($C$3,車速表!$A:$AE,30,FALSE)) -> 0.0 | W11: =IF(ISERROR(VLOOKUP($C$3,車速表!$A:$AE,31,FALSE))=TRUE,0,VLOOKUP($C$3,車速表!$A:$AE,31,FALSE)) -> 0.0
A14: 作業条件①
A16: 名 称 | C16: 個数 | D16: 吐出量1 | E16: 吐出量1.5 | F16: 吐出量2 | G16: 吐出量計 | I16: 最大吐出量 | K16: ノズル個数
A17: =■散布量計算シート!H15 -> Φ 1.5 | C17: =■散布量計算シート!I15 -> 18 | D17: =IF(ISERROR(VLOOKUP($A17,ノズル吐出量,2,FALSE))=TRUE,0,VLOOKUP($A17,ノズル吐出量,2,FALSE)) -> 3.11 | E17: =IF(ISERROR(VLOOKUP($A17,ノズル吐出量,3,FALSE))=TRUE,0,VLOOKUP($A17,ノズル吐出量,3,FALSE)) -> 3.8 | F17: =IF(ISERROR(VLOOKUP($A17,ノズル吐出量,4,FALSE))=TRUE,0,VLOOKUP($A17,ノズル吐出量,4,FALSE)) -> 4.33 | G17: =IF($B$20=1,$C17*D17,IF($B$20=1.5,$C17*E17,IF(B$20=2,$C17*F17,0))) -> 67.9 | I17: =IF(C3<>0,VLOOKUP(C3,車速表!A:AG,33,FALSE),0) -> 154 | J17: L/分 | K17: =IF(C3<>0,VLOOKUP(C3,車速表!A:AH,34,FALSE),0) -> 36
A18: =■散布量計算シート!H16 -> Φ 1.2 | C18: =■散布量計算シート!I16 -> 18 | D18: =IF(ISERROR(VLOOKUP($A18,ノズル吐出量,2,FALSE))=TRUE,0,VLOOKUP($A18,ノズル吐出量,2,FALSE)) -> 1.85 | E18: =IF(ISERROR(VLOOKUP($A18,ノズル吐出量,3,FALSE))=TRUE,0,VLOOKUP($A18,ノズル吐出量,3,FALSE)) -> 2.2 | F18: =IF(ISERROR(VLOOKUP($A18,ノズル吐出量,4,FALSE))=TRUE,0,VLOOKUP($A18,ノズル吐出量,4,FALSE)) -> 2.55 | G18: =IF($B$20=1,$C18*D18,IF($B$20=1.5,$C18*E18,$C18*F18)) -> 40.1 | K18: 風量(H/L)
A19: =■散布量計算シート!H17 -> 0 | C19: =■散布量計算シート!I17 -> 0 | D19: =IF(ISERROR(VLOOKUP($A19,ノズル吐出量,2,FALSE))=TRUE,0,VLOOKUP($A19,ノズル吐出量,2,FALSE)) -> 0 | E19: =IF(ISERROR(VLOOKUP($A19,ノズル吐出量,3,FALSE))=TRUE,0,VLOOKUP($A19,ノズル吐出量,3,FALSE)) -> 0.0 | F19: =IF(ISERROR(VLOOKUP($A19,ノズル吐出量,4,FALSE))=TRUE,0,VLOOKUP($A19,ノズル吐出量,4,FALSE)) -> 0 | G19: =IF($B$20=1,$C19*D19,IF($B$20=1.5,$C19*E19,$C19*F19)) -> 0.0 | I19: 走行距離 | K19: =IF(C3<>0,VLOOKUP(C3,車速表!A:AJ,35,FALSE),0) -> 880
A20: 噴霧ポンプ圧力 | B20: =■散布量計算シート!D18 -> 1.5 | C20: =SUM(C17:C19) -> 36 | F20: 計 | G20: =SUM(G17:G19) -> 108.0 | H20: (L/分) | I20: =■散布量計算シート!$D$17 -> 177 | J20: m | K20: =IF(C3<>0,VLOOKUP(C3,車速表!A:AJ,36,FALSE),0) -> 593 | M20: ■計算条件-1 | O20: =+■散布量計算シート!D14 -> リンゴ | T20: 散布幅（列間隔） | V20: =+■散布量計算シート!D16 -> 5.6m
A22: エンジン回転数(rpm) | C22: 1600 | D22: 1800 | E22: 2000 | F22: 2200 | G22: 2400 | H22: 2500 | I22: 2600 | J22: 2700 | K22: 2800 | M22: エンジン回転数(rpm) | O22: 1600 | P22: 1800 | Q22: 2000 | R22: 2200 | S22: 2400 | T22: 2500 | U22: 2600 | V22: 2700 | W22: 2800
A23: 散布量 | B23: 低-1 | C23: =IF(AND(C6>0,$I$20>0,$G$20>0),$G$20*O23,0) -> 1195 | D23: 1062 | E23: 956 | F23: 869 | G23: 765 | H23: 0 | I23: 0 | J23: 0 | K23: =IF(AND(K6>0,$I$20>0,$G$20>0),$G$20*W23,0) -> 0 | M23: 散 布 時 間 （分/10a） | N23: 低-1 | O23: =IF(AND(C6>0,$I$20>0,$G$20>0),$I$20*0.06/C6,0) -> 11.1 | P23: 9.8 | Q23: 8.9 | R23: 8.0 | S23: 7.1 | T23: 0.0 | U23: 0.0 | V23: 0.0 | W23: =IF(AND(K6>0,$I$20>0,$G$20>0),$I$20*0.06/K6,0) -> 0.0
B24: 中-1 | C24: 996 | D24: 885 | E24: 797 | F24: 724 | G24: 637 | H24: 0 | I24: 0 | J24: 0 | K24: =IF(AND(K7>0,$I$20>0,$G$20>0),$G$20*W24,0) -> 0 | N24: 中-1 | O24: 9.2 | P24: 8.2 | Q24: 7.4 | R24: 6.7 | S24: 5.9 | T24: 0.0 | U24: 0.0 | V24: 0.0 | W24: =IF(AND(K7>0,$I$20>0,$G$20>0),$I$20*0.06/K7,0) -> 0.0
B25: 低-2 | C25: 815 | D25: 724 | E25: 652 | F25: 592 | G25: 521 | H25: 0 | I25: 0 | J25: 0 | K25: 0 | N25: 低-2 | O25: 7.5 | P25: 6.7 | Q25: 6.0 | R25: 5.5 | S25: 4.8 | T25: 0.0 | U25: 0.0 | V25: 0.0 | W25: 0.0
B26: 中-2 | C26: 689 | D26: 613 | E26: 551 | F26: 501 | G26: 441 | H26: 0 | I26: 0 | J26: 0 | K26: 0 | N26: 中-2 | O26: 6.4 | P26: 5.7 | Q26: 5.1 | R26: 4.6 | S26: 4.1 | T26: 0.0 | U26: 0.0 | V26: 0.0 | W26: 0.0
B27: 低-3 | C27: 560 | D27: 498 | E27: 448 | F27: 407 | G27: 358 | H27: 0 | I27: 0 | J27: 0 | K27: 0 | M27: Travel time (min/10a) | N27: 低-3 | O27: 5.2 | P27: 4.6 | Q27: 4.1 | R27: 3.8 | S27: 3.3 | T27: 0.0 | U27: 0.0 | V27: 0.0 | W27: 0.0
B28: 中-3 | C28: 472 | D28: 419 | E28: 377 | F28: 343 | G28: 302 | H28: 0 | I28: 0 | J28: 0 | K28: 0 | N28: 中-3 | O28: 4.4 | P28: 3.9 | Q28: 3.5 | R28: 3.2 | S28: 2.8 | T28: 0.0 | U28: 0.0 | V28: 0.0 | W28: 0.0
A29: 噴霧ポンプ吐出量(L/m) | C29: =D29*1600/1800 -> 87 | D29: =E29*1800/2000 -> 98 | E29: =F29*2000/2200 -> 109 | F29: =G29*2200/2400 -> 120 | G29: =IF(H23=0,IF(G23>0,$I$17*0.85,0),H29*2400/2500) -> 131 | H29: =IF(I23=0,IF(H23>0,$I$17*0.85,0),I29*2500/2600) -> 0 | I29: =IF(J23=0,IF(I23>0,$I$17*0.85,0),J29*2600/2700) -> 0 | J29: =IF(K23=0,IF(J23>0,$I$17*0.85,0),K29*2700/2800) -> 0 | K29: =IF(K23>0,$I$17*0.85,0) -> 0
B30: 風量 Ｈ側 | C30: =D30*1600/1800 -> 587 | D30: =E30*1800/2000 -> 660 | E30: =F30*2000/2200 -> 733 | F30: =G30*2200/2400 -> 807 | G30: =IF(H23=0,IF(G23>0,K19,0),H30*2400/2500) -> 880 | H30: =IF(I23=0,IF(H23>0,K19,0),I30*2500/2600) -> 0 | I30: =IF(J23=0,IF(I23>0,K19,0),J30*2600/2700) -> 0 | J30: =IF(K23=0,IF(J23>0,K19,0),K30*2700/2800) -> 0 | K30: =IF(K23>0,K19,0) -> 0
B31: 風量 Ｌ側 | C31: =D31*1600/1800 -> 395 | D31: =E31*1800/2000 -> 445 | E31: =F31*2000/2200 -> 494 | F31: =G31*2200/2400 -> 544 | G31: =IF(H23=0,IF(G23>0,K20,0),H31*2400/2500) -> 593 | H31: =IF(I23=0,IF(H23>0,K20,0),I31*2500/2600) -> 0 | I31: =IF(J23=0,IF(I23>0,K20,0),J31*2600/2700) -> 0 | J31: =IF(K23=0,IF(J23>0,K20,0),K31*2700/2800) -> 0 | K31: =IF(K23>0,K20,0) -> 0
A33: 作業条件②
A35: 名 称 | C35: 個数 | D35: 吐出量1 | E35: 吐出量1.5 | F35: 吐出量2 | G35: 吐出量計 | I35: 最大吐出量 | K35: ノズル個数
A36: =■散布量計算シート!H38 -> Φ 1.2 | C36: =■散布量計算シート!I38 -> 28 | D36: =IF(ISERROR(VLOOKUP($A36,ノズル吐出量,2,FALSE))=TRUE,0,VLOOKUP($A36,ノズル吐出量,2,FALSE)) -> 1.85 | E36: =IF(ISERROR(VLOOKUP($A36,ノズル吐出量,3,FALSE))=TRUE,0,VLOOKUP($A36,ノズル吐出量,3,FALSE)) -> 2.2 | F36: =IF(ISERROR(VLOOKUP($A36,ノズル吐出量,4,FALSE))=TRUE,0,VLOOKUP($A36,ノズル吐出量,4,FALSE)) -> 2.55 | G36: =IF($B$39=1,$C36*D36,IF($B$39=1.5,$C36*E36,IF(B$39=2,$C36*F36,0))) -> 62.4 | I36: =IF(C3<>0,VLOOKUP(C3,車速表!A:AG,33,FALSE),0) -> 154 | J36: L/分 | K36: =IF(C3<>0,VLOOKUP(C3,車速表!A:AH,34,FALSE),0) -> 36
A37: =■散布量計算シート!H39 -> 0 | C37: =■散布量計算シート!I39 -> 0 | D37: =IF(ISERROR(VLOOKUP($A37,ノズル吐出量,2,FALSE))=TRUE,0,VLOOKUP($A37,ノズル吐出量,2,FALSE)) -> 0 | E37: =IF(ISERROR(VLOOKUP($A37,ノズル吐出量,3,FALSE))=TRUE,0,VLOOKUP($A37,ノズル吐出量,3,FALSE)) -> 0.0 | F37: =IF(ISERROR(VLOOKUP($A37,ノズル吐出量,4,FALSE))=TRUE,0,VLOOKUP($A37,ノズル吐出量,4,FALSE)) -> 0 | G37: =IF($B$39=1,$C37*D37,IF($B$39=1.5,$C37*E37,$C37*F37)) -> 0.0 | K37: 風量(H/L)
A38: =■散布量計算シート!H40 -> 0 | C38: =■散布量計算シート!I40 -> 0 | D38: =IF(ISERROR(VLOOKUP($A38,ノズル吐出量,2,FALSE))=TRUE,0,VLOOKUP($A38,ノズル吐出量,2,FALSE)) -> 0 | E38: =IF(ISERROR(VLOOKUP($A38,ノズル吐出量,3,FALSE))=TRUE,0,VLOOKUP($A38,ノズル吐出量,3,FALSE)) -> 0.0 | F38: =IF(ISERROR(VLOOKUP($A38,ノズル吐出量,4,FALSE))=TRUE,0,VLOOKUP($A38,ノズル吐出量,4,FALSE)) -> 0 | G38: =IF($B$39=1,$C38*D38,IF($B$39=1.5,$C38*E38,$C38*F38)) -> 0.0 | I38: 走行距離 | K38: =IF(C3<>0,VLOOKUP(C3,車速表!A:AJ,35,FALSE),0) -> 880
A39: 噴霧ポンプ圧力 | B39: =■散布量計算シート!D41 -> 1.5 | C39: =SUM(C36:C38) -> 28 | F39: 計 | G39: =SUM(G36:G38) -> 62.4 | H39: (L/分) | I39: =■散布量計算シート!$D$40 -> 222 | J39: m | K39: =IF(C3<>0,VLOOKUP(C3,車速表!A:AJ,36,FALSE),0) -> 593 | M39: ■計算条件-2 | O39: =+■散布量計算シート!D37 -> リンゴ園-B | T39: 散布幅（列間隔） | V39: =+■散布量計算シート!D39 -> 4.5m
A41: エンジン回転数(rpm) | C41: 1600 | D41: 1800 | E41: 2000 | F41: 2200 | G41: 2400 | H41: 2500 | I41: 2600 | J41: 2700 | K41: 2800 | M41: エンジン回転数(rpm) | O41: 1600 | P41: 1800 | Q41: 2000 | R41: 2200 | S41: 2400 | T41: 2500 | U41: 2600 | V41: 2700 | W41: 2800
A42: 散布量 | B42: 低-1 | C42: =IF(AND(C6>0,$I$39>0,$G$39>0),$G$39*O42,0) -> 866 | D42: 770 | E42: 693 | F42: 630 | G42: 554 | H42: 0 | I42: 0 | J42: 0 | K42: 0 | M42: 散 布 時 間 （分/10a） | N42: 低-1 | O42: =IF(AND(C6>0,$I$39>0,$G$39>0),$I$39*0.06/C6,0) -> 13.9 | P42: 12.3 | Q42: 11.1 | R42: 10.1 | S42: 8.9 | T42: 0.0 | U42: 0.0 | V42: 0.0 | W42: 0.0
B43: 中-1 | C43: 722 | D43: 642 | E43: 578 | F43: 525 | G43: 462 | H43: 0 | I43: 0 | J43: 0 | K43: 0 | N43: 中-1 | O43: =IF(AND(C7>0,$I$39>0,$G$39>0),$I$39*0.06/C7,0) -> 11.6 | P43: 10.3 | Q43: 9.3 | R43: 8.4 | S43: 7.4 | T43: 0.0 | U43: 0.0 | V43: 0.0 | W43: =IF(AND(K7>0,$I$39>0,$G$39>0),$I$39*0.06/K7,0) -> 0.0
B44: 低-2 | C44: 591 | D44: 525 | E44: 473 | F44: 430 | G44: 378 | H44: 0 | I44: 0 | J44: 0 | K44: 0 | N44: 低-2 | O44: 9.5 | P44: 8.4 | Q44: 7.6 | R44: 6.9 | S44: 6.1 | T44: 0.0 | U44: 0.0 | V44: 0.0 | W44: 0.0
B45: 中-2 | C45: 500 | D45: 444 | E45: 400 | F45: 364 | G45: 320 | H45: 0 | I45: 0 | J45: 0 | K45: 0 | N45: 中-2 | O45: 8.0 | P45: 7.1 | Q45: 6.4 | R45: 5.8 | S45: 5.1 | T45: 0.0 | U45: 0.0 | V45: 0.0 | W45: 0.0
B46: 低-3 | C46: 406 | D46: 361 | E46: 325 | F46: 295 | G46: 260 | H46: 0 | I46: 0 | J46: 0 | K46: 0 | M46: Travel time (min/10a) | N46: 低-3 | O46: 6.5 | P46: 5.8 | Q46: 5.2 | R46: 4.7 | S46: 4.2 | T46: 0.0 | U46: 0.0 | V46: 0.0 | W46: 0.0
B47: 中-3 | C47: 342 | D47: 304 | E47: 274 | F47: 249 | G47: 219 | H47: 0 | I47: 0 | J47: 0 | K47: 0 | N47: 中-3 | O47: 5.5 | P47: 4.9 | Q47: 4.4 | R47: 4.0 | S47: 3.5 | T47: 0.0 | U47: 0.0 | V47: 0.0 | W47: 0.0
A48: 噴霧ポンプ吐出量(L/m) | C48: =D48*1600/1800 -> 87 | D48: =E48*1800/2000 -> 98 | E48: =F48*2000/2200 -> 109 | F48: =G48*2200/2400 -> 120 | G48: =IF(H42=0,IF(G42>0,$I$36*0.85,0),H48*2400/2500) -> 131 | H48: =IF(I42=0,IF(H42>0,$I$36*0.85,0),I48*2500/2600) -> 0 | I48: =IF(J42=0,IF(I42>0,$I$36*0.85,0),J48*2600/2700) -> 0 | J48: =IF(K42=0,IF(J42>0,$I$36*0.85,0),K48*2700/2800) -> 0 | K48: =IF(K42>0,$I$36*0.85,0) -> 0
B49: 風量 Ｈ側 | C49: =D49*1600/1800 -> 587 | D49: =E49*1800/2000 -> 660 | E49: =F49*2000/2200 -> 733 | F49: =G49*2200/2400 -> 807 | G49: =IF(H42=0,IF(G42>0,K38,0),H49*2400/2500) -> 880 | H49: =IF(I42=0,IF(H42>0,K38,0),I49*2500/2600) -> 0 | I49: =IF(J42=0,IF(I42>0,K38,0),J49*2600/2700) -> 0 | J49: =IF(K42=0,IF(J42>0,K38,0),K49*2700/2800) -> 0 | K49: =IF(K42>0,K38,0) -> 0
B50: 風量 Ｌ側 | C50: =D50*1600/1800 -> 395 | D50: =E50*1800/2000 -> 445 | E50: =F50*2000/2200 -> 494 | F50: =G50*2200/2400 -> 544 | G50: =IF(H42=0,IF(G42>0,K39,0),H50*2400/2500) -> 593 | H50: =IF(I42=0,IF(H42>0,K39,0),I50*2500/2600) -> 0 | I50: =IF(J42=0,IF(I42>0,K39,0),J50*2600/2700) -> 0 | J50: =IF(K42=0,IF(J42>0,K39,0),K50*2700/2800) -> 0 | K50: =IF(K42>0,K39,0) -> 0

Sheet 車速表 (hidden)
A1: 定格エンジン回転数/車速 | B1: 低－1 | G1: 中－1 | L1: 低－2 | Q1: 中－2 | V1: 低－3 | AA1: 中－3 | AG1: 噴霧ポンプ | AH1: ノズル | AI1: 使用時風量 (㎥）
A2: 製 品 名 | B2: 2400 | C2: 2500 | D2: 2600 | E2: 2700 | F2: 2800 | G2: 2400 | H2: 2500 | I2: 2600 | J2: 2700 | K2: 2800 | L2: 2400 | M2: 2500 | N2: 2600 | O2: 2700 | P2: 2800 | Q2: 2400 | R2: 2500 | S2: 2600 | T2: 2700 | U2: 2800 | V2: 2400 | W2: 2500 | X2: 2600 | Y2: 2700 | Z2: 2800 | AA2: 2400 | AB2: 2500 | AC2: 2600 | AD2: 2700 | AE2: 2800 | AG2: 最大吐出量 | AH2: 最大個数 | AI2: H側 | AJ2: L側
A3: CT1050H | B3: =C3*0.96 -> 1.3 | C3: 1.4 | D3: =E3*0.96 -> 0.0 | E3: =F3*0.96 -> 0.0 | G3: =H3*0.96 -> 1.6 | H3: 1.7 | I3: =J3*0.96 -> 0.0 | J3: =K3*0.96 -> 0.0 | L3: =M3*0.96 -> 2.0 | M3: 2.1 | N3: =O3*0.96 -> 0.0 | O3: =P3*0.96 -> 0.0 | Q3: =R3*0.96 -> 2.3 | R3: 2.4 | S3: =T3*0.96 -> 0.0 | T3: =U3*0.96 -> 0.0 | V3: =W3*0.96 -> 2.9 | W3: 3.0 | X3: =Y3*0.96 -> 0.0 | Y3: =Z3*0.96 -> 0.0 | AA3: =AB3*0.96 -> 3.5 | AB3: 3.6 | AC3: =AD3*0.96 -> 0.0 | AD3: =AE3*0.96 -> 0.0 | AG3: 112 | AH3: 28 | AI3: 825 | AJ3: 550
A4: FST1063H | B4: 1.5 | C4: =D4*0.96 -> 0.0 | D4: =E4*0.96 -> 0.0 | E4: =F4*0.96 -> 0.0 | G4: 1.8 | H4: =I4*0.96 -> 0.0 | I4: =J4*0.96 -> 0.0 | J4: =K4*0.96 -> 0.0 | L4: 2.2 | M4: =N4*0.96 -> 0.0 | N4: =O4*0.96 -> 0.0 | O4: =P4*0.96 -> 0.0 | Q4: 2.6 | R4: =S4*0.96 -> 0.0 | S4: =T4*0.96 -> 0.0 | T4: =U4*0.96 -> 0.0 | V4: 3.2 | W4: =X4*0.96 -> 0.0 | X4: =Y4*0.96 -> 0.0 | Y4: =Z4*0.96 -> 0.0 | AA4: 3.8 | AB4: =AC4*0.96 -> 0.0 | AC4: =AD4*0.96 -> 0.0 | AD4: =AE4*0.96 -> 0.0 | AG4: 154 | AH4: 36 | AI4: 880 | AJ4: 593
A5: V512 | B5: =C5*0.96 -> 1.5 | C5: 1.6 | G5: =H5*0.96 -> 0.0 | L5: =M5*0.96 -> 2.1 | M5: 2.2 | Q5: =R5*0.96 -> 0.0 | V5: =W5*0.96 -> 3.2 | W5: 3.3 | AA5: =AB5*0.96 -> 0.0 | AG5: 51.2 | AH5: 14 | AI5: 320
A6: FSC1062(L) | B6: =C6*0.96 -> 1.3 | C6: 1.4 | D6: 1.5 | E6: 1.6 | G6: 2.4 | H6: 2.5 | I6: 2.7 | J6: 2.8 | L6: 1.6 | M6: 1.7 | N6: 1.8 | O6: 1.9 | Q6: 2.9 | R6: 3.0 | S6: 3.3 | T6: 3.4 | V6: 2.1 | W6: 2.2 | X6: 2.3 | Y6: 2.4 | AA6: 3.7 | AB6: 3.9 | AC6: 4.2 | AD6: 4.4 | AG6: 155.0 | AH6: 36 | AI6: 936
A7: VE1052/CE1052H/FSE1052H(青森仕様ノズル） | B7: 1.5 | G7: 1.8 | L7: 2.2 | Q7: 2.6 | V7: 3.2 | AA7: 3.8 | AG7: 112.0 | AH7: 28 | AI7: 795 | AJ7: 527
A8: VE1050C/CE1051HC/FSE1051HC(青森仕様ノズル） | B8: =C8*0.96 -> 1.4 | C8: 1.4 | D8: 1.5 | E8: 0.0 | G8: =H8*0.96 -> 1.6 | H8: 1.6 | I8: 1.7 | J8: 0.0 | L8: =M8*0.96 -> 1.9 | M8: 2.0 | N8: 2.1 | O8: 0.0 | Q8: =R8*0.96 -> 2.3 | R8: 2.4 | S8: 2.5 | T8: 0.0 | V8: =W8*0.96 -> 2.9 | W8: 3.0 | X8: 3.1 | Y8: 0.0 | AA8: =AB8*0.96 -> 3.4 | AB8: 3.6 | AC8: 3.7 | AG8: 116.0 | AH8: 28 | AI8: 795 | AJ8: 527
A9: C1050HS（青森仕様ノズル） | B9: 1.3 | C9: 1.3 | D9: 1.4 | E9: 0.0 | G9: 1.5 | H9: 1.5 | I9: 1.6 | J9: 0.0 | L9: 1.8 | M9: 1.9 | N9: 2.0 | O9: 0.0 | Q9: 2.1 | R9: 2.2 | S9: 2.3 | T9: 0.0 | V9: 2.8 | W9: 2.9 | X9: 3.0 | Y9: 0.0 | AA9: 3.1 | AB9: 3.3 | AC9: 3.4 | AG9: 116.0 | AH9: 28 | AI9: 800 | AJ9: 570
A10: YE1051HC/YSE1051HC（青森仕様ノズル） | B10: 1.3 | C10: 1.3 | D10: 1.4 | E10: 0.0 | G10: 1.6 | H10: 1.6 | I10: 1.7 | J10: 0.0 | L10: 1.9 | M10: 2.0 | N10: 2.1 | O10: 0.0 | Q10: 2.2 | R10: 2.3 | S10: 2.4 | T10: 0.0 | V10: 2.8 | W10: 2.9 | X10: 3.0 | Y10: 0.0 | AA10: 3.3 | AB10: 3.5 | AC10: 3.6 | AG10: 112.0 | AH10: 28 | AI10: 825 | AJ10: 550
A11: C1061/FS1061/FSC1061(L) | B11: 1.5 | C11: =D11*0.96 -> 1.5 | D11: 1.6 | E11: =F11*0.96 -> 0.0 | G11: 2.7 | H11: =I11*0.96 -> 2.8 | I11: 2.9 | J11: =K11*0.96 -> 0.0 | L11: 1.8 | M11: =N11*0.96 -> 1.8 | N11: 1.9 | O11: =P11*0.96 -> 0.0 | Q11: 3.2 | R11: =S11*0.96 -> 3.4 | S11: 3.5 | T11: =U11*0.96 -> 0.0 | V11: 2.3 | W11: =X11*0.96 -> 2.4 | X11: 2.5 | Y11: =Z11*0.96 -> 0.0 | AA11: 4.1 | AB11: =AC11*0.96 -> 4.3 | AC11: 4.5 | AD11: =AE11*0.96 -> 0.0 | AG11: 152.0 | AH11: 36 | AI11: 900
A12: CT1020（青森仕様ノズル） | B12: =C12*0.96 -> 1.4 | C12: 1.5 | D12: =E12*0.96 -> 0.0 | E12: =F12*0.96 -> 0.0 | G12: =H12*0.96 -> 0.0 | H12: 0.0 | I12: =J12*0.96 -> 0.0 | J12: =K12*0.96 -> 0.0 | L12: =M12*0.96 -> 2.1 | M12: 2.2 | N12: =O12*0.96 -> 0.0 | O12: =P12*0.96 -> 0.0 | Q12: =R12*0.96 -> 0.0 | R12: 0.0 | S12: =T12*0.96 -> 0.0 | T12: =U12*0.96 -> 0.0 | V12: =W12*0.96 -> 3.0 | W12: 3.1 | X12: =Y12*0.96 -> 0.0 | Y12: =Z12*0.96 -> 0.0 | AA12: =AB12*0.96 -> 0.0 | AB12: 0.0 | AC12: =AD12*0.96 -> 0.0 | AD12: =AE12*0.96 -> 0.0 | AG12: 112.0 | AH12: 28 | AI12: 825 | AJ12: 547
A13: FSC1060/FSC1060L(S) | B13: 1.5 | C13: 1.6 | D13: =E13*0.96 -> 0.0 | E13: =F13*0.96 -> 0.0 | G13: 2.8 | H13: 2.9 | I13: =J13*0.96 -> 0.0 | J13: =K13*0.96 -> 0.0 | L13: 1.8 | M13: 1.9 | N13: =O13*0.96 -> 0.0 | O13: =P13*0.96 -> 0.0 | Q13: 3.4 | R13: 3.5 | S13: =T13*0.96 -> 0.0 | T13: =U13*0.96 -> 0.0 | V13: 2.4 | W13: 2.5 | X13: =Y13*0.96 -> 0.0 | Y13: =Z13*0.96 -> 0.0 | AA13: 4.3 | AB13: 4.5 | AC13: =AD13*0.96 -> 0.0 | AD13: =AE13*0.96 -> 0.0 | AG13: 155.0 | AH13: 36 | AI13: 956
A14: C1060/FS1060/C1033/FSC1033 | B14: 1.6 | C14: 1.7 | D14: =E14*0.96 -> 0.0 | E14: =F14*0.96 -> 0.0 | G14: 2.9 | H14: 3.1 | I14: =J14*0.96 -> 0.0 | J14: =K14*0.96 -> 0.0 | L14: 2.0 | M14: 2.1 | N14: =O14*0.96 -> 0.0 | O14: =P14*0.96 -> 0.0 | Q14: 3.6 | R14: 3.7 | S14: =T14*0.96 -> 0.0 | T14: =U14*0.96 -> 0.0 | V14: 2.4 | W14: 2.5 | X14: =Y14*0.96 -> 0.0 | Y14: =Z14*0.96 -> 0.0 | AA14: 4.3 | AB14: 4.5 | AC14: =AD14*0.96 -> 0.0 | AD14: =AE14*0.96 -> 0.0 | AG14: 155.0 | AH14: 36 | AI14: 990
A15: C524P/C624P（ミカン機仕様） | B15: =C15*0.96 -> 1.5 | C15: 1.6 | D15: =E15*0.96 -> 0.0 | E15: =F15*0.96 -> 0.0 | G15: =H15*0.96 -> 0.0 | I15: =J15*0.96 -> 0.0 | J15: =K15*0.96 -> 0.0 | L15: =M15*0.96 -> 2.1 | M15: 2.2 | N15: =O15*0.96 -> 0.0 | O15: =P15*0.96 -> 0.0 | Q15: =R15*0.96 -> 0.0 | R15: =S15*0.96 -> 0.0 | S15: =T15*0.96 -> 0.0 | T15: =U15*0.96 -> 0.0 | V15: =W15*0.96 -> 3.3 | W15: 3.4 | X15: =Y15*0.96 -> 0.0 | Y15: =Z15*0.96 -> 0.0 | AA15: =AB15*0.96 -> 0.0 | AB15: =AC15*0.96 -> 0.0 | AC15: =AD15*0.96 -> 0.0 | AD15: =AE15*0.96 -> 0.0 | AG15: 93.0 | AH15: 24 | AI15: 560
A16: C522/C522P/FS522P（ミカン機仕様） | B16: 1.4 | C16: 1.5 | D16: =E16*0.96 -> 0.0 | E16: 0.0 | G16: 0.0 | I16: =J16*0.96 -> 0.0 | J16: 0.0 | L16: 2.0 | M16: 2.1 | N16: =O16*0.96 -> 0.0 | O16: 0.0 | Q16: 0.0 | R16: 0.0 | S16: 0.0 | T16: 0.0 | V16: 3.1 | W16: 3.2 | X16: =Y16*0.96 -> 0.0 | Y16: 0.0 | AA16: 0.0 | AB16: 0.0 | AC16: 0.0 | AD16: 0.0 | AG16: 63.0 | AH16: 24 | AI16: 525
A17: C622P（ミカン機仕様） | B17: =C17*0.96 -> 1.5 | C17: 1.6 | D17: =E17*0.96 -> 0.0 | E17: =F17*0.96 -> 0.0 | G17: =H17*0.96 -> 0.0 | I17: =J17*0.96 -> 0.0 | J17: =K17*0.96 -> 0.0 | L17: =M17*0.96 -> 2.1 | M17: 2.2 | N17: =O17*0.96 -> 0.0 | O17: =P17*0.96 -> 0.0 | Q17: =R17*0.96 -> 0.0 | R17: =S17*0.96 -> 0.0 | S17: =T17*0.96 -> 0.0 | T17: =U17*0.96 -> 0.0 | V17: =W17*0.96 -> 3.3 | W17: 3.4 | X17: =Y17*0.96 -> 0.0 | Y17: =Z17*0.96 -> 0.0 | AA17: =AB17*0.96 -> 0.0 | AB17: =AC17*0.96 -> 0.0 | AC17: =AD17*0.96 -> 0.0 | AD17: =AE17*0.96 -> 0.0 | AG17: 93.0 | AH17: 24 | AI17: 525
A18: CE631H/CE641HC/FST640HC（ミカン機仕様） | B18: 1.3 | C18: 1.4 | D18: 0.0 | E18: 0.0 | G18: 1.6 | H18: 1.7 | I18: 0.0 | J18: 0.0 | L18: 2.0 | M18: 2.1 | N18: 0.0 | O18: 0.0 | Q18: 2.4 | R18: 2.5 | S18: 0.0 | T18: 0.0 | V18: 3.0 | W18: 3.1 | X18: 0.0 | Y18: 0.0 | AA18: 3.5 | AB18: 3.6 | AC18: 0.0 | AD18: 0.0 | AG18: 93.0 | AH18: 28 | AI18: 728 | AJ18: 530
A19: FS642H/CE642H（ミカン機仕様） | B19: 1.3 | C19: =D19*0.96 -> 1.3 | D19: 1.4 | E19: 1.4 | F19: 1.5 | G19: 1.4 | H19: 1.5 | I19: 1.6 | J19: 1.6 | K19: 1.7 | L19: 1.8 | M19: =N19*0.96 -> 1.9 | N19: 1.9 | O19: 2.0 | P19: 2.1 | Q19: 2.1 | R19: 2.2 | S19: 2.3 | T19: 2.4 | U19: 2.5 | V19: 2.6 | W19: =X19*0.96 -> 2.7 | X19: 2.9 | Y19: 3.0 | Z19: 3.1 | AA19: 3.1 | AB19: 3.2 | AC19: 3.3 | AD19: 3.5 | AE19: 3.6 | AG19: 95.0 | AH19: 26 | AI19: 727 | AJ19: 517
A20: FSE1052H/CE1052H（ミカン機仕様） | B20: 1.5 | G20: 1.8 | L20: 2.2 | Q20: 2.6 | V20: 3.2 | AA20: 3.8 | AG20: 112.0 | AH20: 26 | AI20: 795 | AJ20: 527
A21: FSE1051HC/CE1051HC/YSE1051HC/YE1051HC（ミカン機仕様） | B21: =C21*0.96 -> 1.4 | C21: =D21*0.96 -> 1.4 | D21: 1.5 | G21: =H21*0.96 -> 1.6 | H21: =I21*0.96 -> 1.6 | I21: 1.7 | L21: =M21*0.96 -> 1.9 | M21: =N21*0.96 -> 2.0 | N21: 2.1 | Q21: =R21*0.96 -> 2.3 | R21: 2.4 | S21: 2.5 | V21: =W21*0.96 -> 2.9 | W21: =X21*0.96 -> 3.0 | X21: 3.1 | AA21: =AB21*0.96 -> 3.4 | AB21: 3.6 | AC21: 3.7 | AG21: 116.0 | AH21: 28 | AI21: 800 | AJ21: 570
A22: 4WD-AW | B22: =C22*0.96 -> 2.0 | C22: 2.1 | D22: =E22*0.96 -> 0.0 | E22: =F22*0.96 -> 0.0 | G22: =H22*0.96 -> 0.0 | H22: =I22*0.96 -> 0.0 | I22: =J22*0.96 -> 0.0 | J22: =K22*0.96 -> 0.0 | L22: =M22*0.96 -> 2.5 | M22: 2.6 | N22: =O22*0.96 -> 0.0 | O22: =P22*0.96 -> 0.0 | Q22: =R22*0.96 -> 0.0 | R22: =S22*0.96 -> 0.0 | S22: =T22*0.96 -> 0.0 | T22: =U22*0.96 -> 0.0 | V22: =W22*0.96 -> 3.2 | W22: 3.3 | X22: =Y22*0.96 -> 0.0 | Y22: =Z22*0.96 -> 0.0 | AA22: =AB22*0.96 -> 0.0 | AB22: 0.0 | AC22: 0.0 | AD22: 0.0 | AG22: 155.0 | AH22: 28 | AI22: 990
A23: C600 | B23: 1.2 | C23: =D23*0.96 -> 1.3 | D23: =E23*0.96 -> 1.3 | E23: 1.4 | G23: 0.0 | H23: 0.0 | I23: 0.0 | J23: 0.0 | L23: 1.7 | M23: =N23*0.96 -> 1.8 | N23: =O23*0.96 -> 1.8 | O23: 1.9 | Q23: 0.0 | R23: 0.0 | S23: 0.0 | T23: 0.0 | V23: 2.7 | W23: =X23*0.96 -> 2.9 | X23: =Y23*0.96 -> 3.0 | Y23: 3.1 | AA23: 0.0 | AB23: 0.0 | AC23: 0.0 | AD23: 0.0 | AG23: 98.0 | AH23: 22 | AI23: 500
A24: CT600 | B24: 1.2 | C24: 1.3 | D24: 1.3 | E24: 1.4 | G24: 0.0 | H24: 0.0 | I24: 0.0 | J24: 0.0 | L24: 1.7 | M24: 1.8 | N24: 1.8 | O24: 1.9 | Q24: 0.0 | R24: 0.0 | S24: 0.0 | T24: 0.0 | V24: 2.7 | W24: 2.9 | X24: 3.0 | Y24: 3.1 | AA24: 0.0 | AB24: 0.0 | AC24: 0.0 | AD24: 0.0 | AG24: 98.0 | AH24: 22 | AI24: 600
A25: CT620 | B25: 1.4 | C25: 1.5 | D25: =E25*0.96 -> 0.0 | E25: =F25*0.96 -> 0.0 | G25: 0.0 | H25: =I25*0.96 -> 0.0 | I25: 0.0 | J25: =K25*0.96 -> 0.0 | L25: 1.9 | M25: 2.0 | N25: =O25*0.96 -> 0.0 | O25: =P25*0.96 -> 0.0 | Q25: 0.0 | R25: =S25*0.96 -> 0.0 | S25: 0.0 | T25: =U25*0.96 -> 0.0 | V25: 3.2 | W25: 3.3 | X25: =Y25*0.96 -> 0.0 | Y25: =Z25*0.96 -> 0.0 | AA25: 0.0 | AB25: =AC25*0.96 -> 0.0 | AC25: 0.0 | AD25: =AE25*0.96 -> 0.0 | AG25: 112.0 | AH25: 26 | AI25: 750 | AJ25: 490
A26: CT620W | B26: 1.4 | C26: 1.5 | D26: 0.0 | E26: 0.0 | G26: 0.0 | H26: 0.0 | I26: 0.0 | J26: 0.0 | L26: 1.9 | M26: 2.0 | N26: 0.0 | O26: 0.0 | Q26: 0.0 | R26: 0.0 | S26: 0.0 | T26: 0.0 | V26: 3.2 | W26: 3.3 | X26: 0.0 | Y26: 0.0 | AA26: 0.0 | AB26: 0.0 | AC26: 0.0 | AD26: 0.0 | AG26: 112.0 | AH26: 26 | AI26: 860 | AJ26: 570
A27: FS615(DX) | B27: 1.2 | C27: =D27*0.96 -> 1.3 | D27: =E27*0.96 -> 1.3 | E27: 1.4 | G27: 0.0 | H27: =I27*0.96 -> 0.0 | I27: =J27*0.96 -> 0.0 | J27: =K27*0.96 -> 0.0 | L27: 1.5 | M27: =N27*0.96 -> 1.6 | N27: =O27*0.96 -> 1.7 | O27: 1.7 | Q27: 0.0 | R27: =S27*0.96 -> 0.0 | S27: =T27*0.96 -> 0.0 | T27: =U27*0.96 -> 0.0 | V27: 2.6 | W27: =X27*0.96 -> 2.7 | X27: =Y27*0.96 -> 2.8 | Y27: 2.9 | AA27: 0.0 | AB27: =AC27*0.96 -> 0.0 | AC27: =AD27*0.96 -> 0.0 | AD27: =AE27*0.96 -> 0.0 | AG27: 93.0 | AH27: 18 | AI27: 560 | AJ27: 350
A28: FSC615 | B28: 1.2 | C28: 1.3 | D28: 1.3 | E28: 1.4 | G28: 0.0 | H28: 0.0 | I28: 0.0 | J28: 0.0 | L28: 1.5 | M28: 1.6 | N28: 1.7 | O28: 1.7 | Q28: 0.0 | R28: 0.0 | S28: 0.0 | T28: 0.0 | V28: 2.6 | W28: 2.7 | X28: 2.8 | Y28: 2.9 | AA28: 0.0 | AB28: 0.0 | AC28: 0.0 | AD28: 0.0 | AG28: 93.0 | AH28: 18 | AI28: 650 | AJ28: 350
A29: FSC615W | B29: 1.2 | C29: 1.3 | D29: 1.3 | E29: 1.4 | G29: 0.0 | H29: 0.0 | I29: 0.0 | J29: 0.0 | L29: 1.5 | M29: 1.6 | N29: 1.7 | O29: 1.7 | Q29: 0.0 | R29: 0.0 | S29: 0.0 | T29: 0.0 | V29: 2.6 | W29: 2.7 | X29: 2.8 | Y29: 2.9 | AA29: 0.0 | AB29: 0.0 | AC29: 0.0 | AD29: 0.0 | AG29: 93.0 | AH29: 18 | AI29: 670 | AJ29: 420
A30: FS(C)1015 副変速2段 | B30: 1.3 | C30: 1.4 | D30: 1.4 | E30: 1.5 | G30: 0.0 | L30: 1.8 | M30: 1.8 | N30: 1.9 | O30: 2.0 | Q30: 0.0 | V30: 2.8 | W30: 2.9 | X30: 3.1 | Y30: 3.2 | AA30: 0.0 | AG30: 93.0 | AH30: 22 | AI30: 735 | AJ30: 510
A31: FS(C)1015 副変速3段 | B31: 1.1 | C31: =D31*0.96 -> 1.1 | D31: 1.2 | E31: 1.2 | G31: 2.0 | H31: =I31*0.96 -> 2.1 | I31: =J31*0.96 -> 2.2 | J31: 2.3 | L31: 1.4 | M31: =N31*0.96 -> 1.5 | N31: 1.5 | O31: 1.6 | Q31: 2.6 | R31: =S31*0.96 -> 2.7 | S31: =T31*0.96 -> 2.8 | T31: 2.9 | V31: 2.3 | W31: =X31*0.96 -> 2.4 | X31: 2.5 | Y31: 2.6 | AA31: 4.3 | AB31: =AC31*0.96 -> 4.5 | AC31: 4.7 | AD31: 4.9 | AG31: 93.0 | AH31: 22 | AI31: 735 | AJ31: 510
A32: FS1020 | B32: 0.9 | C32: 1.0 | D32: 1.0 | E32: 1.1 | F32: 1.1 | G32: 1.8 | H32: =I32*0.96 -> 1.9 | I32: 1.9 | J32: =K32*0.96 -> 2.0 | K32: 2.1 | L32: 1.2 | M32: 1.2 | N32: 1.3 | O32: 1.3 | P32: 1.4 | Q32: 2.3 | R32: =S32*0.96 -> 2.4 | S32: 2.5 | T32: =U32*0.96 -> 2.6 | U32: 2.7 | V32: 2.0 | W32: 2.0 | X32: 2.1 | Y32: 2.2 | Z32: 2.3 | AA32: 3.8 | AB32: 4.0 | AC32: 4.1 | AD32: =AE32*0.96 -> 4.3 | AE32: 4.5 | AG32: 147.0 | AH32: 28 | AI32: 865 | AJ32: 518
A33: FS1020W | B33: 0.9 | C33: 1.0 | D33: 1.0 | E33: 1.1 | F33: 1.1 | G33: 1.8 | H33: 1.9 | I33: 1.9 | J33: 2.0 | K33: 2.1 | L33: 1.2 | M33: 1.2 | N33: 1.3 | O33: 1.3 | P33: 1.4 | Q33: 2.3 | R33: 2.4 | S33: 2.5 | T33: 2.6 | U33: 2.7 | V33: 2.0 | W33: 2.0 | X33: 2.1 | Y33: 2.2 | Z33: 2.3 | AA33: 3.8 | AB33: 4.0 | AC33: 4.1 | AD33: 4.3 | AE33: 4.5 | AG33: 147.0 | AH33: 28 | AI33: 890 | AJ33: 610
A34: VT1020 | B34: 1.4 | C34: =D34*0.96 -> 1.4 | D34: 1.5 | E34: =F34*0.96 -> 0.0 | G34: 0.0 | H34: =I34*0.96 -> 0.0 | I34: 0.0 | J34: =K34*0.96 -> 0.0 | L34: 1.9 | M34: =N34*0.96 -> 2.0 | N34: 2.1 | O34: =P34*0.96 -> 0.0 | Q34: 0.0 | R34: =S34*0.96 -> 0.0 | S34: 0.0 | T34: =U34*0.96 -> 0.0 | V34: 3.1 | W34: =X34*0.96 -> 3.3 | X34: 3.4 | Y34: =Z34*0.96 -> 0.0 | AA34: 0.0 | AB34: =AC34*0.96 -> 0.0 | AC34: 0.0 | AD34: =AE34*0.96 -> 0.0 | AG34: 112.0 | AH34: 26 | AI34: 690 | AJ34: 491
A35: VT1020W | B35: 1.4 | C35: 1.4 | D35: 1.5 | E35: 0.0 | G35: 0.0 | H35: 0.0 | I35: 0.0 | J35: 0.0 | L35: 1.9 | M35: 2.0 | N35: 2.1 | O35: 0.0 | Q35: 0.0 | R35: 0.0 | S35: 0.0 | T35: 0.0 | V35: 3.1 | W35: 3.3 | X35: 3.4 | Y35: 0.0 | AA35: 0.0 | AB35: 0.0 | AC35: 0.0 | AD35: 0.0 | AG35: 112.0 | AH35: 26 | AI35: 860 | AJ35: 570
A36: V600 | B36: 1.2 | C36: =D36*0.96 -> 1.3 | D36: 1.3 | E36: 1.4 | G36: 0.0 | H36: =I36*0.96 -> 0.0 | I36: 0.0 | J36: =K36*0.96 -> 0.0 | L36: 1.7 | M36: =N36*0.96 -> 1.8 | N36: 1.8 | O36: 1.9 | Q36: 0.0 | R36: =S36*0.96 -> 0.0 | S36: 0.0 | T36: =U36*0.96 -> 0.0 | V36: 2.7 | W36: =X36*0.96 -> 2.9 | X36: 3.0 | Y36: 3.1 | AA36: 0.0 | AB36: =AC36*0.96 -> 0.0 | AC36: 0.0 | AD36: =AE36*0.96 -> 0.0 | AG36: 98.0 | AH36: 18 | AI36: 458 | AJ36: 303
A37: V600W | B37: 1.2 | C37: 1.3 | D37: 1.3 | E37: 1.4 | G37: 0.0 | H37: 0.0 | I37: 0.0 | J37: 0.0 | L37: 1.7 | M37: 1.8 | N37: 1.8 | O37: 1.9 | Q37: 0.0 | R37: 0.0 | S37: 0.0 | T37: 0.0 | V37: 2.7 | W37: 2.9 | X37: 3.0 | Y37: 3.1 | AA37: 0.0 | AB37: 0.0 | AC37: 0.0 | AD37: 0.0 | AG37: 98.0 | AH37: 18 | AI37: 620 | AJ37: 400
A38: VT600 | B38: 1.2 | C38: 1.3 | D38: 1.3 | E38: 1.4 | G38: 0.0 | H38: 0.0 | I38: 0.0 | J38: 0.0 | L38: 1.7 | M38: 1.8 | N38: 1.8 | O38: 1.9 | Q38: 0.0 | R38: 0.0 | S38: 0.0 | T38: 0.0 | V38: 2.7 | W38: 2.9 | X38: 3.0 | Y38: 3.1 | AA38: 0.0 | AB38: 0.0 | AC38: 0.0 | AD38: 0.0 | AG38: 98.0 | AH38: 18 | AI38: 524 | AJ38: 346
A39: VT600W | B39: 1.2 | C39: 1.3 | D39: 1.3 | E39: 1.4 | G39: 0.0 | H39: 0.0 | I39: 0.0 | J39: 0.0 | L39: 1.7 | M39: 1.8 | N39: 1.8 | O39: 1.9 | Q39: 0.0 | R39: 0.0 | S39: 0.0 | T39: 0.0 | V39: 2.7 | W39: 2.9 | X39: 3.0 | Y39: 3.1 | AA39: 0.0 | AB39: 0.0 | AC39: 0.0 | AD39: 0.0 | AG39: 98.0 | AH39: 18 | AI39: 730 | AJ39: 490
A40: VT1000 | B40: 1.2 | C40: 1.3 | D40: 1.3 | E40: 1.4 | G40: 0.0 | H40: 0.0 | I40: 0.0 | J40: 0.0 | L40: 1.7 | M40: 1.8 | N40: 1.8 | O40: 1.9 | Q40: 0.0 | R40: 0.0 | S40: 0.0 | T40: 0.0 | V40: 2.8 | W40: 2.9 | X40: 3.1 | Y40: 3.2 | AA40: 0.0 | AB40: 0.0 | AC40: 0.0 | AD40: 0.0 | AG40: 98.0 | AH40: 22 | AI40: 590 | AJ40: 390
A41: VT1000W | B41: 1.2 | C41: =D41*0.96 -> 1.3 | D41: 1.3 | E41: 1.4 | G41: 0.0 | H41: =I41*0.96 -> 0.0 | I41: 0.0 | J41: =K41*0.96 -> 0.0 | L41: 1.7 | M41: =N41*0.96 -> 1.8 | N41: 1.8 | O41: 1.9 | Q41: 0.0 | R41: =S41*0.96 -> 0.0 | S41: 0.0 | T41: =U41*0.96 -> 0.0 | V41: 2.8 | W41: =X41*0.96 -> 2.9 | X41: 3.1 | Y41: 3.2 | AA41: 0.0 | AB41: =AC41*0.96 -> 0.0 | AC41: 0.0 | AD41: =AE41*0.96 -> 0.0 | AG41: 98.0 | AH41: 22 | AI41: 670 | AJ41: 440
A42: R510Ⅱ | B42: 0.9 | C42: 0.9 | G42: 0.0 | L42: 1.4 | M42: 1.5 | Q42: 0.0 | V42: 2.3 | W42: 2.4 | AA42: 0.0 | AG42: 62.0 | AH42: 16 | AI42: 313
A43: 1000D | B43: 2.0 | C43: 2.1 | H43: =I43*0.96 -> 0.0 | I43: =J43*0.96 -> 0.0 | J43: =K43*0.96 -> 0.0 | L43: 2.7 | M43: 2.8 | R43: =S43*0.96 -> 0.0 | S43: =T43*0.96 -> 0.0 | T43: =U43*0.96 -> 0.0 | V43: 3.6 | W43: 3.7 | AB43: =AC43*0.96 -> 0.0 | AC43: 0.0 | AD43: =AE43*0.96 -> 0.0 | AG43: 122.0 | AH43: 28 | AI43: 846
A44: BO2D-KT-Ⅱ | B44: 1.2 | C44: 1.3 | D44: 1.3 | E44: 1.4 | H44: 0.0 | I44: 0.0 | J44: 0.0 | L44: 1.6 | M44: 1.7 | N44: 1.7 | O44: 1.8 | R44: 0.0 | S44: 0.0 | T44: 0.0 | V44: 2.7 | W44: 2.8 | X44: 2.9 | Y44: 3.1 | AB44: 0.0 | AC44: 0.0 | AD44: 0.0 | AG44: 84.8 | AH44: 22 | AI44: 570
A45: 600TⅡ | B45: =C45*0.96 -> 1.2 | C45: 1.3 | D45: 1.3 | E45: 1.4 | H45: =I45*0.96 -> 0.0 | I45: 0.0 | J45: =K45*0.96 -> 0.0 | L45: =M45*0.96 -> 1.6 | M45: 1.7 | N45: 1.7 | O45: 1.8 | R45: =S45*0.96 -> 0.0 | S45: 0.0 | T45: =U45*0.96 -> 0.0 | V45: =W45*0.96 -> 2.7 | W45: 2.8 | X45: 2.9 | Y45: 3.1 | AB45: =AC45*0.96 -> 0.0 | AC45: 0.0 | AD45: 0.0 | AG45: 84.8 | AH45: 22 | AI45: 550
A46: 1000TⅡ | B46: 1.2 | C46: 1.3 | D46: 1.3 | E46: 1.4 | H46: 0.0 | I46: 0.0 | J46: 0.0 | L46: 1.6 | M46: 1.7 | N46: 1.7 | O46: 1.8 | R46: 0.0 | S46: 0.0 | T46: 0.0 | V46: 2.7 | W46: 2.8 | X46: 2.9 | Y46: 3.1 | AB46: 0.0 | AC46: 0.0 | AD46: 0.0 | AG46: 84.8 | AH46: 22 | AI46: 621
A47: BO2D-KT | B47: 1.2 | C47: 1.3 | D47: 1.3 | E47: 1.4 | H47: 0.0 | I47: 0.0 | J47: 0.0 | L47: 1.6 | M47: 1.7 | N47: 1.7 | O47: 1.8 | R47: 0.0 | S47: 0.0 | T47: 0.0 | V47: 2.7 | W47: 2.8 | X47: 2.9 | Y47: 3.1 | AB47: 0.0 | AC47: 0.0 | AD47: 0.0 | AG47: 85.0 | AH47: 22 | AI47: 421
A48: 600T | B48: 1.2 | C48: 1.3 | D48: 1.3 | E48: 1.4 | H48: 0.0 | I48: 0.0 | J48: 0.0 | L48: 1.6 | M48: 1.7 | N48: 1.7 | O48: 1.8 | R48: 0.0 | S48: 0.0 | T48: 0.0 | V48: 2.7 | W48: 2.8 | X48: 2.9 | Y48: 3.1 | AB48: 0.0 | AC48: 0.0 | AD48: 0.0 | AG48: 81.3 | AH48: 22 | AI48: 516
A49: 1000T | B49: 1.2 | C49: 1.3 | D49: 1.3 | E49: 1.4 | H49: 0.0 | I49: 0.0 | J49: 0.0 | L49: 1.6 | M49: 1.7 | N49: 1.7 | O49: 1.8 | R49: 0.0 | S49: 0.0 | T49: 0.0 | V49: 2.7 | W49: 2.8 | X49: 2.9 | Y49: 3.1 | AB49: 0.0 | AC49: 0.0 | AD49: 0.0 | AG49: 88.3 | AH49: 22 | AI49: 467
A50: 4WD6T(Ⅱ) Ⅲ型ノズル仕様 | B50: 1.2 | C50: 1.3 | D50: 1.3 | E50: 1.4 | G50: 0.0 | L50: 1.6 | M50: 1.7 | N50: 1.8 | O50: 1.8 | Q50: 0.0 | V50: 2.2 | W50: 2.3 | X50: 2.4 | Y50: 2.5 | AA50: 0.0 | AG50: 85.0 | AH50: 22 | AI50: 560
A51: 4WD6(Ⅱ) Ⅲ型ノズル仕様 | B51: 1.2 | C51: 1.3 | D51: 1.3 | E51: 1.4 | G51: 0.0 | H51: 0.0 | J51: 0.0 | L51: 1.6 | M51: 1.7 | N51: 1.8 | O51: 1.8 | Q51: 0.0 | R51: 0.0 | T51: 0.0 | V51: 2.2 | W51: 2.3 | X51: 2.4 | Y51: 2.5 | AA51: 0.0 | AB51: 0.0 | AD51: 0.0 | AG51: 82.0 | AH51: 22 | AI51: 390 | AJ51: .

Sheet 吐出量表 (hidden)
B1: 1.0MPa | C1: 1.5Mpa | D1: 2.0MPa | F1: 散布幅 | G1: 走行距離（ｍ）
A2: Φ 0.8 | B2: 0.66 | C2: 0.81 | D2: 0.93 | F2: 3m | G2: 333
A3: Φ 1.0 | B3: 1.53 | C3: 1.85 | D3: 2.12 | F3: 3.5m | G3: 285
A4: Φ 1.2 | B4: 1.85 | C4: 2.23 | D4: 2.55 | F4: 4m | G4: 250 | I4: 横(m) | J4: =散布幅×２
A5: Φ 1.4 | B5: 2.71 | C5: 3.27 | D5: 3.75 | F5: 4.5m | G5: 222 | I5: 縦(m) | J5: =10a÷横幅(m)
A6: Φ 1.5 | B6: 3.11 | C6: 3.77 | D6: 4.33 | F6: 5m | G6: 200 | I6: 走行距離 | J6: =縦×１（両側散布）+縦×２×1/2（片側散布）=縦×２往復
A7: Φ 0.8（広） | B7: 0.61 | C7: 0.74 | D7: 0.85 | F7: 5.6m | G7: 177 | J7: =1000㎡÷（散布幅×2列）×2往復
A8: Φ 1.0（広） | B8: 1.14 | C8: 1.38 | D8: 1.59 | F8: 6m | G8: 167 | J8: =1000÷散布幅
A9: Φ 1.2（広） | B9: 1.31 | C9: 1.59 | D9: 1.82 | F9: 6.5m | G9: 154
A10: Φ 1.4（広） | B10: 1.80 | C10: 2.18 | D10: 2.47 | F10: 7m | G10: 143
A11: Φ 1.5（広） | B11: 2.01 | C11: 2.45 | D11: 2.72 | F11: 7.5m | G11: 133
A12: SV-23-40K | B12: 1.9 | C12: 2.3 | F12: 8m | G12: 125
A13: SV-30-55K | B13: 2.5 | C13: 3.0
A14: CV1080 | B14: 0.9 | C14: 1.1
A15: CV1780 | B15: 1.40 | C15: 1.80

Sheet 追加登録 (hidden)
B1: 追加する製品データを入力後、「製品データ追加」ボタンをクリックしてください。
B4: 製品名 | D4: CT1050H
B5: エンジン定格回転数 | D5: 2500 | E5: rpm | F5: ←リストから選択（それ以外の回転数は対応不可）。
B6: 定格回転時車速 | C6: 低-1 | D6: 1.4 | E6: km/h
C7: 中-1 | D7: 1.7 | E7: km/h | F7: ←副変速に「中」がない機種は、中-1～3は0にする。
C8: 低-2 | D8: 2.1 | E8: km/h
C9: 中-2 | D9: 2.4 | E9: km/h
C10: 低-3 | D10: 3 | E10: km/h
C11: 中-3 | D11: 3.6 | E11: km/h
B12: 噴霧ポンプ吐出量 | D12: 112 | E12: L/分 | F12: ←カタログ値（余水考慮前）を入力する。
B13: 使用時風量 | C13: H側 | D13: 825 | E13: ㎥/分 | F13: ←風量切り替えがない機種はH側に入力する。
C14: L側 | D14: 550 | E14: ㎥/分
B15: ノズル個数 | D15: 28 | E15: 個
B23: ※登録したデータを削除するときは、「車速表」シートのデータを手動で行削除してください。
